Workbook

Sheet Cover
I2: Hubbard Decision Research 2S410 Canterbury Ct Glen Ellyn, IL 60137 www.hubbardresearch.com
E5: Table of Contents for Additional Simulation Examples
E7: 1) Examples of Distributions from Chapter 9 2) Capital investment Monte Carlo Example from Chapter 10 3) Power Law Example from Chapter 10 4) Correlation in Data and R Squared from Chapter 10 and 12 5) HDR PRNG Chapter 13

Sheet Examples of Distributions
A1: Examples of Distributions (Chapter 9)
B2: Hubbard Decision Research | C2: These are the calculations for Appendix A: Selected Distributions. There are several useful random distributions here that apply to a variety of different cybersecurity risks. The Binary (aka Bernoulli) produces a "1" or "0" (which can be used as "event occurred" or "event didn't occur"). It applies to whether a security event such as a data breach occurred on the first place. The other distributions are more appropriate for types of impacts that result after an event occurs - such as a system outage, a number of records compromised, the costs of legal liabilities, and so on. Yellow cells are for user inputs to define the distribution. If you want to simply copy the formula for another sheet, use the formula in the "Random Result" cell. NOTE: The formula for the triangular was wrong in the book! The formula was incorrectly transcribed in the first place and then a last minute change before printing was incorrectly applied to such an extent that what was left was unrecognizable as anything like the triangular distribution. The formula below, however, is correct.
B3: www.hubbardresearch.com
B4: info@hubbardresearch.com
A5: Trial ID Slider
A6: 4998
A7: Triangular (CORRECTED!)
A8: Bin Size | B8: 10 | G8: For a triangular distribution, the UB and LB represent absolute limits. There is no chance that a value could be generated outside of these bounds. In addition to the UB and LB, this distribution also has a mode that can vary to any value between the UB and LB. This is sometimes useful as a substitute for a lognormal, when you want to set absolute limits on what the values can be but you want to skew the output in a way similar to the lognormal. It is useful in any situation where you know of absolute limits but the most likely value might not be in the middle, like the normal distribution. ■■When to Use: When you want control over where the most likely value is compared to the range, and when the range has absolute limits. ■■ Examples: Number of records lost if you think the most likely number is near the top of the range and yet you have a finite number of records you know cannot be exceeded. ■■ Mean: =(LB+Mode+UB)/3
A9: Var ID | B9: 10000
A10: HDR PRNG | B10: =(MOD((MOD(MOD(999999999999989,MOD($A$6*9929+$B$9*9721,31907)*4177+7450581)*30119,31607)*31607+MOD(MOD(997969999999967,MOD($A$6*9857+$B$9*9949,33493)*4051+7450581)*29633,31607))*1000981,4294967296)+0.5)/4294967296 -> 0.07558815612
A11: Random Result | B11: =IF(B10<(B14-B12)/(B13-B12),B12+SQRT(B10)*(B14-B12),B13-SQRT(B10)*(B13-B14)) -> 1.549866006
A12: Lower Bound | B12: 1
A13: Upper Bound | B13: 4
A14: Mode | B14: 3
A16: Binary
A17: Bin Size | B17: 0.1 | G17: Unlike the other distributions mentioned here, a discrete binary distribution (also known as a Bernoulli distribution) generates just two possible outcomes: success or failure. The probability of success is p and the probability of failure is q = (1 – p). For example, if success means to flip a fair coin heads‐up, the probability of success is p = .5, and the probability of failure is q = (1 – .5) = .5. ■■ When to use: This is used in either/or situations—something either happens or it doesn’t. ■■ Example: The occurrence of a data breach in a given period of time. ■■ Mean: =P
A18: Var ID | B18: 20000
A19: HDR PRNG | B19: =(MOD((MOD(MOD(999999999999989,MOD($A$6*9929+$B$18*9721,31907)*4177+7450581)*30119,31607)*31607+MOD(MOD(997969999999967,MOD($A$6*9857+$B$18*9949,33493)*4051+7450581)*29633,31607))*1000981,4294967296)+0.5)/4294967296 -> 0.7206124732
A20: Random Result | B20: =IF(B19<B21,1,0) -> 0
A21: Probability | B21: 0.2
A22: Complement | B22: =1-B21 -> 0.8
A24: Normal
A25: Bin Size | B25: 3 | G25: A normal (or Gaussian) distribution is a bell‐shaped curve that is symmetrically distributed about the mean. Many natural phenomenon follow this distribution but in some applications it will underestimate the probability of extreme events. ■■ When to Use: When there is equal probability of observing a result above or below the mean. ■■ Examples: Test scores, travel time. ■■ Mean: =(UB + LB)/2
A26: Var ID | B26: 30000
A27: HDR PRNG | B27: =(MOD((MOD(MOD(999999999999989,MOD(A6*9929+B26*9721,31907)*4177+7450581)*30119,31607)*31607+MOD(MOD(997969999999967,MOD(A6*9857+ B26*9949,33493)*4051+7450581)*29633,31607))*1000981,4294967296)+0.5)/4294967296 -> 0.5259369646
A28: Random Result | B28: =_xlfn.NORM.INV(B27,(B30+B29)/2,(B30-B29)/3.29) -> 1519.775136
A29: Lower Bound | B29: 1000
A30: Upper Bound | B30: 2000
A32: Lognormal
A33: Bin Size | B33: 10 | G33: The lognormal distribution is an often preferred alternative to the normal distribution when a sample can only take positive values. It also allows for the possibility of extreme values on the upper end and, therefore, may fit some phenomena better than a normal. ■ When to Use: To model positive values that are primarily moderate in scope but have potential for rare extreme events. ■ Examples: Losses incurred by a cyberattack, the cost of a project. ■ Excel Formula: =lognorm.inv(rand(),(ln(UB) + ln(LB))/2, (ln(UB)‐ln(LB))/3.29) ■ Mean: = ((ln(UB)+ln(LB))/2)
A34: Var ID | B34: 40000
A35: HDR PRNG | B35: =(MOD((MOD(MOD(999999999999989,MOD(A6*9929+B34*9721,31907)*4177+7450581)*30119,31607)*31607+MOD(MOD(997969999999967,MOD(A6*9857+ B34*9949,33493)*4051+7450581)*29633,31607))*1000981,4294967296)+0.5)/4294967296 -> 0.8229810704
A36: Random Result | B36: =_xlfn.LOGNORM.INV(B35,(LN(B38)+LN(B37))/2,(LN(B38)-LN(B37))/3.29) -> 351.8708432
A37: Lower Bound | B37: 100
A38: Upper Bound | B38: 500
A40: Beta
A41: Bin Size | B41: 0.01 | G41: Beta distributions are extremely versatile. They can be used to generate values between 0 and 1 but where some values are more likely than others. This result can also be used in other formulas to generate any range of values you like. They are particularly useful when modeling the frequency of an event, especially when the frequency is estimated based on random samples of a population or historical observations. In this distribution it is not quite as easy as in other distributions to determine the parameters based only on upper and lower bounds. The only solution is iteratively trying different “alpha” and “beta” values until you get the 90% CI you want. If alpha and beta are each greater than 1 and equal to each other, then it will be symmetrical, where values near .5 are the most likely and less likely further away from .5. The larger you make both alpha and beta, the narrower the distribution. If you make alpha larger than beta, the distribution will skew to the left, and if you make beta larger, it skews to the right. ■■ When to Use: Any situation that can be characterized as a set of “hits” and “misses.” For each hit, increase alpha by 1. For each miss, increase beta by 1. ■■ Examples: Frequency of an event (such as a data breach) when the frequency is less than 1 per time unit (e.g., year), the proportion of employees following a security procedure correctly.
A42: Var ID | B42: 50000
A43: HDR PRNG | B43: =(MOD((MOD(MOD(999999999999989,MOD(A6*9929+B42*9721,31907)*4177+7450581)*30119,31607)*31607+MOD(MOD(997969999999967,MOD(A6*9857+ B42*9949,33493)*4051+7450581)*29633,31607))*1000981,4294967296)+0.5)/4294967296 -> 0.09232078784
A44: Random Result | B44: =_xlfn.BETA.INV(B43,B45,B46) -> 0.09245310873
A45: Alpha | B45: 3
A46: Beta | B46: 10
A47: 5 Percentile | B47: =_xlfn.BETA.INV(0.05,B45,B46) -> 0.07187025554
A48: 95 Percentile | B48: =_xlfn.BETA.INV(0.95,B45,B46) -> 0.4381054351
A51: Power Law
A52: Bin Size | B52: 0.01 | H52: The power law is a useful distribution for describing phenomena with extreme, catastrophic possibilities - even more than lognormal. The “fat tail” of the power law distribution allows us to acknowledge the common small event, while still accounting for more extreme possibilities. In fact, sometimes this type of distribution may not always have a defined-mean because the tails goes out so far. Be careful of producing unintended extreme results. To keep this from producing unrealistic results, you might prefer to use the Truncated Power Law Below. We show this distribution in a simple form which requires that you enter "alpha" and "theta" iteratively until you get the 90% Confidence Interval you want. ■■ When to Use: When you want to make sure that catastrophic events, while rare, will be given nontrivial probabilities. ■■ Examples: Phenomena like earthquakes, power outages, epidemics, and other types of “cascade failures” have this property.
A53: Var ID | B53: 60000
A54: HDR PRNG | B54: =(MOD((MOD(MOD(999999999999989,MOD(A6*9929+B53*9721,31907)*4177+7450581)*30119,31607)*31607+MOD(MOD(997969999999967,MOD(A6*9857+ B53*9949,33493)*4051+7450581)*29633,31607))*1000981,4294967296)+0.5)/4294967296 -> 0.003612775006
A55: Random Result | B55: =(B57/B54)^B56 -> 1.645598424
A56: Alpha | B56: 0.15
A57: Theta (Scale) | B57: 0.1
A58: Computed 5 Percentile | B58: =(B57/(1-0.05))^B56 -> 0.7134137233
A59: Computed 95 Percentile | B59: =(B57/(1-0.95))^B56 -> 1.109569472
A60: Max in 10k Scenarios | B60: =MAX(F78:F10077) -> 3.260759785
A62: Truncated Power Law
A63: Bin Size | B63: 0.01 | G63: The truncated power law distribution is simply the power law distribution, but with an upper limit that is imposed by the user. While the heavy tail of the power law distribution allows us to account for the rare catastrophic event, there may be a theoretical bound to the size of such an event. If this upper limit is not factored into the model, we may produce a misleading and unnecessarily grim forecast. As above, you need to enter values for alpha, theta and truncated percentile until you see 5 percentile, 95 percentile, and truncated value (the upper limit) that agrees with how you want to model this quantity. ■■ When to Use: The power law distribution should be truncated if an upper bound on the severity of an event is known. ■■ Example: Losses of records may follow a power law but you know you only have a finite number of records to lose.
A64: Var ID | B64: 70000
A65: HDR PRNG | B65: =(MOD((MOD(MOD(999999999999989,MOD(A6*9929+B64*9721,31907)*4177+7450581)*30119,31607)*31607+MOD(MOD(997969999999967,MOD(A6*9857+ B64*9949,33493)*4051+7450581)*29633,31607))*1000981,4294967296)+0.5)/4294967296 -> 0.02323722199
A66: Random Result | B66: =(B68/(B65*B69+1-B69))^B67 -> 1.050345009
A67: Alpha | B67: 0.15
A68: Theta | B68: 0.1
A69: Truncated Percentile | B69: 0.95
A70: Computed 5 Percentile | B70: =(B68/((1-0.05)*B69+1-B69))^B67 -> 0.7131325379
A71: Computed 95 Percentile | B71: =(B68/((1-0.95)*B69+1-B69))^B67 -> 1.003804891
A72: Truncated Value | B72: =(B68/(1-B69))^B67 -> 1.109569472
A74: Data Table for Distributions | I74: Data Table for Distributions
A75: Below was the Excel Data Table created to produce the distributions above. There are 10,000 scenarios, so depending on your system performance, it may have taken a while to run. To manage speed and file size, the data table was converted back to a fixed table of values. If you would like to convert it back to a data table that dynamically generates the values, just go to the "Data" panel in Excel and then choose "What If Analysis"/"Data Table." See Excel help for instructions on creating data tables. | I75: Below is the histogram to create the distributions above based on the simulations in the table to the left. If you change the table to the left back to a data table, these will change dynamically (but may take a while for each run).
B76: Triangular | C76: Normal | D76: Log-Normal | E76: Beta | F76: Power Law | G76: Truncated Power Law | J76: Triangular | K76: Normal | L76: Log-Normal | M76: Beta | N76: Power Law | O76: Truncated Power Law
B77: =B11 -> 1.549866006 | C77: =B28 -> 1519.775136 | D77: =B36 -> 351.8708432 | E77: =B44 -> 0.09245310873 | F77: =B55 -> 1.645598424 | G77: =B66 -> 1.050345009
A78: 1 | B78: 2.562509681 | C78: 1152.858983 | D78: 197.1162984 | E78: 0.2060535425 | F78: 0.8547847096 | G78: 0.7417914082 | I78: Min | J78: =MIN(B78:B10077) -> 1.026037139 | K78: =MIN(C78:C10077) -> 437.5830428 | L78: 25.98913384 | M78: 0.007837819052 | N78: 0.7079523991 | O78: 0.7079468419
A79: 2 | B79: 3.888703415 | C79: 1597.136101 | D79: 156.0689778 | E79: 0.170690374 | F79: 0.7100379457 | G79: 1.047157493 | I79: Max | J79: =MAX(B78:B10077) -> 3.985540842 | K79: =MAX(C78:C10077) -> 2983.864902 | L79: 1570.900562 | M79: 0.7455889556 | N79: 3.260759785 | O79: 1.109197012
A80: 3 | B80: 2.745233676 | C80: 1232.578741 | D80: 165.9754076 | E80: 0.1127035669 | F80: 0.7428704124 | G80: 0.7751272701 | I80: Increment | J80: =(J79-J78)/40 -> 0.07398759255 | K80: =(K79-K78)/40 -> 63.65704648 | L80: =(L79-L78)/40 -> 38.6227857 | M80: 0.01844377841 | N80: 0.06382018465 | O80: 0.01003125426
A81: 4 | B81: 2.823828858 | C81: 1273.288363 | D81: 375.3241744 | E81: 0.1407429514 | F81: 0.745980627 | G81: 0.9221772789
A82: 5 | B82: 2.115866984 | C82: 1395.015618 | D82: 173.6345541 | E82: 0.2888570838 | F82: 0.8259566242 | G82: 0.793432015 | I82: 0 | J82: =COUNTIFS(B$78:B$10077,"<"&(J$78+J$80*$I82+J$80/2),B$78:B$10077,">="&(J$78+J$80*$I82-J$80/2)) -> 5 | K82: 1 | L82: 7 | M82: 12 | N82: 2550 | O82: 496
A83: 6 | B83: 1.616410507 | C83: 1151.844056 | D83: 254.820866 | E83: 0.09379248 | F83: 0.9116799655 | G83: 0.8928819296 | I83: 1 | J83: 35 | K83: 5 | L83: 241 | M83: 77 | N83: 3136 | O83: 896
A84: 7 | B84: 3.356632901 | C84: 900.7952188 | D84: 148.1944031 | E84: 0.242388522 | F84: 0.7421577853 | G84: 1.089143466 | I84: 2 | J84: 56 | K84: 6 | L84: 839 | M84: 154 | N84: 1765 | O84: 798
A85: 8 | B85: 3.062786488 | C85: 1037.731947 | D85: 311.2953118 | E85: 0.2352867952 | F85: 0.7612237661 | G85: 0.7183659792 | I85: 3 | J85: 56 | K85: 14 | L85: 1393 | M85: 252 | N85: 938 | O85: 715
A86: 9 | B86: 3.684183678 | C86: 1186.671412 | D86: 329.8001371 | E86: 0.1195983561 | F86: 0.7251323351 | G86: 0.7483456464 | I86: 4 | J86: 80 | K86: 17 | L86: 1598 | M86: 356 | N86: 547 | O86: 659
A87: 10 | B87: 3.460171525 | C87: 1874.287152 | D87: 211.8909164 | E87: 0.1914465044 | F87: 0.7590704112 | G87: 0.8164133067 | I87: 5 | J87: 83 | K87: 38 | L87: 1443 | M87: 463 | N87: 376 | O87: 570
A88: 11 | B88: 2.546143385 | C88: 1404.567817 | D88: 296.9408195 | E88: 0.4009270575 | F88: 0.7232393428 | G88: 0.7115751762 | I88: 6 | J88: 125 | K88: 60 | L88: 1207 | M88: 551 | N88: 228 | O88: 553
A89: 12 | B89: 3.386252192 | C89: 1480.872418 | D89: 102.8252869 | E89: 0.1664534897 | F89: 0.7864661655 | G89: 0.8785915271 | I89: 7 | J89: 132 | K89: 107 | L89: 900 | M89: 641 | N89: 141 | O89: 483
A90: 13 | B90: 2.853670143 | C90: 1897.554211 | D90: 236.6824074 | E90: 0.2892095519 | F90: 1.271359876 | G90: 0.7472787096 | I90: 8 | J90: 167 | K90: 177 | L90: 661 | M90: 667 | N90: 79 | O90: 416
A91: 14 | B91: 3.297531177 | C91: 1152.581457 | D91: 290.6497772 | E91: 0.2014052844 | F91: 1.132887494 | G91: 0.8113309929 | I91: 9 | J91: 153 | K91: 215 | L91: 496 | M91: 687 | N91: 74 | O91: 392
A92: 15 | B92: 2.939162721 | C92: 1358.790239 | D92: 187.9509589 | E92: 0.3575569892 | F92: 0.7261835733 | G92: 0.8457884246 | I92: 10 | J92: 199 | K92: 307 | L92: 354 | M92: 692 | N92: 36 | O92: 345
A93: 16 | B93: 1.386413471 | C93: 1402.691483 | D93: 336.1641656 | E93: 0.2841256134 | F93: 1.03505067 | G93: 1.000630592 | I93: 11 | J93: 213 | K93: 421 | L93: 247 | M93: 628 | N93: 31 | O93: 327
A94: 17 | B94: 2.331855182 | C94: 1383.088574 | D94: 199.5519523 | E94: 0.2727459943 | F94: 0.7989835033 | G94: 0.8809118358 | I94: 12 | J94: 248 | K94: 516 | L94: 176 | M94: 603 | N94: 17 | O94: 284
A95: 18 | B95: 2.990052381 | C95: 1169.746129 | D95: 190.9087365 | E95: 0.1039084784 | F95: 0.788960196 | G95: 0.7774260912 | I95: 13 | J95: 246 | K95: 616 | L95: 137 | M95: 575 | N95: 15 | O95: 269
A96: 19 | B96: 3.664561393 | C96: 1382.806222 | D96: 155.02987 | E96: 0.4934498003 | F96: 0.864354293 | G96: 0.77266502 | I96: 14 | J96: 287 | K96: 719 | L96: 83 | M96: 526 | N96: 11 | O96: 254
A97: 20 | B97: 1.634496537 | C97: 1577.634702 | D97: 133.3669875 | E97: 0.1236199948 | F97: 1.00851255 | G97: 0.8687543229 | I97: 15 | J97: 297 | K97: 824 | L97: 57 | M97: 484 | N97: 14 | O97: 273
A98: 21 | B98: 3.268972008 | C98: 1303.772277 | D98: 122.0862601 | E98: 0.1786952812 | F98: 0.7591731359 | G98: 0.758335983 | I98: 16 | J98: 300 | K98: 827 | L98: 46 | M98: 397 | N98: 9 | O98: 234
A99: 22 | B99: 2.803365744 | C99: 1138.800294 | D99: 553.2674418 | E99: 0.2119672808 | F99: 1.190045525 | G99: 0.7919119166 | I99: 17 | J99: 307 | K99: 797 | L99: 33 | M99: 401 | N99: 7 | O99: 183
A100: 23 | B100: 2.789230627 | C100: 1504.163518 | D100: 216.9460159 | E100: 0.224103196 | F100: 0.7139709711 | G100: 0.8925000908 | I100: 18 | J100: 327 | K100: 797 | L100: 22 | M100: 297 | N100: 3 | O100: 173
A101: 24 | B101: 2.726397053 | C101: 2126.694302 | D101: 227.1738409 | E101: 0.05499463914 | F101: 0.7800111333 | G101: 0.7434451077 | I101: 19 | J101: 353 | K101: 695 | L101: 14 | M101: 277 | N101: 6 | O101: 162
A102: 25 | B102: 2.397597735 | C102: 829.073777 | D102: 276.5186341 | E102: 0.2067046613 | F102: 0.7661994654 | G102: 0.7315608987 | I102: 20 | J102: 376 | K102: 680 | L102: 6 | M102: 248 | N102: 2 | O102: 133
A103: 26 | B103: 2.985264303 | C103: 1720.683805 | D103: 204.5860357 | E103: 0.1907227014 | F103: 0.8366192944 | G103: 0.766697257 | I103: 21 | J103: 373 | K103: 570 | L103: 10 | M103: 201 | N103: 6 | O103: 121
A104: 27 | B104: 3.115018276 | C104: 1385.881735 | D104: 215.4588121 | E104: 0.06558086386 | F104: 0.9339483772 | G104: 0.7414167377 | I104: 22 | J104: 407 | K104: 452 | L104: 11 | M104: 203 | N104: 0 | O104: 121
A105: 28 | B105: 2.80832638 | C105: 1392.308171 | D105: 445.9908183 | E105: 0.2263883116 | F105: 0.7674740933 | G105: 0.796983292 | I105: 23 | J105: 416 | K105: 348 | L105: 1 | M105: 108 | N105: 2 | O105: 128
A106: 29 | B106: 2.792833401 | C106: 1592.486677 | D106: 240.6278219 | E106: 0.1925822262 | F106: 0.7257885142 | G106: 0.8104126092 | I106: 24 | J106: 454 | K106: 272 | L106: 5 | M106: 125 | N106: 1 | O106: 100
A107: 30 | B107: 2.171977397 | C107: 1589.167486 | D107: 108.0320378 | E107: 0.1914308046 | F107: 0.7119786749 | G107: 1.031228232 | I107: 25 | J107: 449 | K107: 172 | L107: 3 | M107: 91 | N107: 0 | O107: 104
A108: 31 | B108: 2.958605606 | C108: 1531.753028 | D108: 146.6373744 | E108: 0.5703534001 | F108: 0.709873189 | G108: 0.814748959 | I108: 26 | J108: 461 | K108: 112 | L108: 3 | M108: 74 | N108: 2 | O108: 95
A109: 32 | B109: 3.508481552 | C109: 2112.408195 | D109: 266.6225949 | E109: 0.3070762371 | F109: 0.7092287915 | G109: 0.9419707558 | I109: 27 | J109: 496 | K109: 106 | L109: 1 | M109: 50 | N109: 1 | O109: 93
A110: 33 | B110: 3.734351883 | C110: 1640.427179 | D110: 175.5787617 | E110: 0.3157015555 | F110: 0.755906408 | G110: 0.7247378124 | I110: 28 | J110: 447 | K110: 53 | L110: 1 | M110: 54 | N110: 0 | O110: 96
A111: 34 | B111: 3.498349164 | C111: 1241.862872 | D111: 213.9198794 | E111: 0.2218760501 | F111: 0.7597471443 | G111: 0.7109940129 | I111: 29 | J111: 383 | K111: 36 | L111: 1 | M111: 31 | N111: 0 | O111: 55
A112: 35 | B112: 3.022729902 | C112: 1026.084886 | D112: 391.717304 | E112: 0.2263769011 | F112: 0.7513081692 | G112: 0.7954968555 | I112: 30 | J112: 376 | K112: 17 | L112: 2 | M112: 19 | N112: 0 | O112: 68
A113: 36 | B113: 1.756933075 | C113: 1490.736096 | D113: 103.0461576 | E113: 0.215780321 | F113: 0.7338821749 | G113: 0.7437593534 | I113: 31 | J113: 337 | K113: 13 | L113: 1 | M113: 19 | N113: 0 | O113: 66
A114: 37 | B114: 3.463072526 | C114: 1642.118165 | D114: 86.83640265 | E114: 0.2287784418 | F114: 0.7438707342 | G114: 0.7217876379 | I114: 32 | J114: 277 | K114: 6 | L114: 0 | M114: 6 | N114: 1 | O114: 56
A115: 38 | B115: 3.581606371 | C115: 1726.377259 | D115: 580.4231927 | E115: 0.245636733 | F115: 0.7338201785 | G115: 0.791031338 | I115: 33 | J115: 243 | K115: 0 | L115: 0 | M115: 14 | N115: 0 | O115: 47
A116: 39 | B116: 1.154601072 | C116: 1855.992133 | D116: 153.5601746 | E116: 0.3974878801 | F116: 0.7519749577 | G116: 0.7175284673 | I116: 34 | J116: 237 | K116: 1 | L116: 0 | M116: 3 | N116: 0 | O116: 48
A117: 40 | B117: 3.067161465 | C117: 1248.498668 | D117: 304.807424 | E117: 0.08986689156 | F117: 0.7243237736 | G117: 1.031322797 | I117: 35 | J117: 183 | K117: 0 | L117: 0 | M117: 4 | N117: 0 | O117: 43
A118: 41 | B118: 1.190243832 | C118: 2151.776207 | D118: 244.7590796 | E118: 0.4671182915 | F118: 0.7192877151 | G118: 0.9364946037 | I118: 36 | J118: 156 | K118: 1 | L118: 0 | M118: 2 | N118: 1 | O118: 37
A119: 42 | B119: 2.729084944 | C119: 2127.051841 | D119: 177.6026314 | E119: 0.3314410716 | F119: 1.344774573 | G119: 0.7121317975 | I119: 37 | J119: 113 | K119: 1 | L119: 0 | M119: 3 | N119: 0 | O119: 26
A120: 43 | B120: 3.236949719 | C120: 1707.346922 | D120: 101.2811909 | E120: 0.0979749245 | F120: 0.8580369466 | G120: 0.7317237134 | I120: 38 | J120: 77 | K120: 0 | L120: 0 | M120: 1 | N120: 0 | O120: 32
A121: 44 | B121: 1.573843833 | C121: 1827.581402 | D121: 226.9957934 | E121: 0.1129129746 | F121: 0.8467228817 | G121: 0.7266986391 | I121: 39 | J121: 56 | K121: 0 | L121: 0 | M121: 1 | N121: 0 | O121: 31
A122: 45 | B122: 2.926220021 | C122: 1701.790743 | D122: 96.01692499 | E122: 0.07785873592 | F122: 0.9206867119 | G122: 0.8101911023 | I122: 40 | J122: 14 | K122: 1 | L122: 1 | M122: 3 | N122: 1 | O122: 18
A123: 46 | B123: 3.534052085 | C123: 1491.869907 | D123: 256.1524342 | E123: 0.1475612272 | F123: 0.7248958011 | G123: 0.7583520783
A124: 47 | B124: 3.480338695 | C124: 2092.418755 | D124: 277.9760015 | E124: 0.1914547689 | F124: 0.7619837416 | G124: 0.815178399
A125: 48 | B125: 3.132076194 | C125: 1549.673482 | D125: 265.967241 | E125: 0.08751868004 | F125: 0.858603626 | G125: 0.8056139035
A126: 49 | B126: 3.100548619 | C126: 732.5874308 | D126: 233.3279277 | E126: 0.2252694095 | F126: 0.8407445693 | G126: 0.7428629119
A127: 50 | B127: 1.675600493 | C127: 1867.80304 | D127: 707.3650813 | E127: 0.2300757675 | F127: 0.8206953242 | G127: 0.9025743132
A128: 51 | B128: 3.014080889 | C128: 1907.148867 | D128: 149.4888707 | E128: 0.1334796712 | F128: 0.8064310125 | G128: 0.7239377933
A129: 52 | B129: 2.560982402 | C129: 1621.808549 | D129: 298.1889651 | E129: 0.1965967179 | F129: 0.7466769057 | G129: 0.7375800442
A130: 53 | B130: 2.658234292 | C130: 1413.89886 | D130: 233.6600934 | E130: 0.4850266102 | F130: 0.7476336375 | G130: 0.8031969186
A131: 54 | B131: 3.538233117 | C131: 1878.176043 | D131: 119.6209933 | E131: 0.1365863026 | F131: 0.7309856709 | G131: 0.8784234608
A132: 55 | B132: 3.09434902 | C132: 1536.767333 | D132: 176.3611941 | E132: 0.1893557923 | F132: 0.769328428 | G132: 0.8314828911
A133: 56 | B133: 3.300625185 | C133: 742.237377 | D133: 142.0885258 | E133: 0.1463989907 | F133: 1.353393331 | G133: 0.7548119999
A134: 57 | B134: 3.920957939 | C134: 1434.116305 | D134: 155.0060388 | E134: 0.1941301876 | F134: 0.743737828 | G134: 0.7585707191
A135: 58 | B135: 2.047641911 | C135: 1385.738817 | D135: 127.1562402 | E135: 0.08857600205 | F135: 0.735181815 | G135: 0.7218110639
A136: 59 | B136: 1.857055479 | C136: 1429.215269 | D136: 281.4717786 | E136: 0.2029122227 | F136: 0.7190561441 | G136: 0.7605712665
A137: 60 | B137: 1.281800242 | C137: 1558.382813 | D137: 433.0958867 | E137: 0.1145240133 | F137: 0.7123913076 | G137: 0.7819520365
A138: 61 | B138: 2.115525061 | C138: 1305.613746 | D138: 153.4511846 | E138: 0.4035798321 | F138: 0.7848826412 | G138: 0.7971612527
A139: 62 | B139: 1.737261769 | C139: 1206.948136 | D139: 369.9356207 | E139: 0.09619728935 | F139: 0.8532115422 | G139: 0.7260397885
A140: 63 | B140: 1.199268783 | C140: 1713.528292 | D140: 255.8396535 | E140: 0.06009710964 | F140: 0.7732489097 | G140: 0.8548115009
A141: 64 | B141: 3.214428366 | C141: 1297.090472 | D141: 532.4143995 | E141: 0.3606034318 | F141: 1.005515926 | G141: 0.9117408006
A142: 65 | B142: 3.271997864 | C142: 1380.793899 | D142: 290.9411727 | E142: 0.1032504249 | F142: 0.8073228612 | G142: 0.7378647745
A143: 66 | B143: 2.304015728 | C143: 1706.532546 | D143: 197.173371 | E143: 0.4105762049 | F143: 0.8629512982 | G143: 0.7352589512
A144: 67 | B144: 3.213730066 | C144: 1604.174847 | D144: 199.55086 | E144: 0.09909166736 | F144: 0.754702077 | G144: 0.7660425791
A145: 68 | B145: 2.744007648 | C145: 1454.380414 | D145: 412.53872 | E145: 0.2133274055 | F145: 1.119084287 | G145: 0.9402704094
A146: 69 | B146: 3.078598558 | C146: 1200.510875 | D146: 214.2192606 | E146: 0.3397960873 | F146: 0.864596169 | G146: 0.7333025372
A147: 70 | B147: 2.614703461 | C147: 1580.122014 | D147: 257.8438561 | E147: 0.2640482628 | F147: 0.711113516 | G147: 0.811317085
A148: 71 | B148: 1.980237532 | C148: 1793.903091 | D148: 368.6599341 | E148: 0.07732099946 | F148: 0.7666122216 | G148: 0.7110142693
A149: 72 | B149: 2.959319982 | C149: 1643.494389 | D149: 463.6346315 | E149: 0.1988273393 | F149: 1.162404812 | G149: 0.7591960554
A150: 73 | B150: 2.388850919 | C150: 1445.769226 | D150: 133.4293718 | E150: 0.1558351348 | F150: 0.8761179868 | G150: 0.7717718943
A151: 74 | B151: 3.367591186 | C151: 1425.485803 | D151: 143.247667 | E151: 0.3275306986 | F151: 0.9843158824 | G151: 0.7661723476
A152: 75 | B152: 2.071472142 | C152: 1222.141382 | D152: 133.4948597 | E152: 0.1974590098 | F152: 0.7116849537 | G152: 0.7390940057
A153: 76 | B153: 2.746967183 | C153: 1503.563616 | D153: 188.2762058 | E153: 0.1775462235 | F153: 0.7134664191 | G153: 0.9170622058
A154: 77 | B154: 1.37478534 | C154: 1138.617569 | D154: 108.7629817 | E154: 0.573481688 | F154: 1.12446945 | G154: 0.8499391922
A155: 78 | B155: 2.257756747 | C155: 1657.214985 | D155: 374.121544 | E155: 0.5222203821 | F155: 0.7308841738 | G155: 0.8955407553
A156: 79 | B156: 1.932367994 | C156: 2103.949423 | D156: 109.9025791 | E156: 0.2172766602 | F156: 0.7293204018 | G156: 0.827089739
A157: 80 | B157: 2.770084508 | C157: 1257.207021 | D157: 174.8943327 | E157: 0.400636228 | F157: 1.017413897 | G157: 0.7366619758
A158: 81 | B158: 3.54929626 | C158: 1364.551984 | D158: 138.9865965 | E158: 0.1896813736 | F158: 0.7702631501 | G158: 1.025398205
A159: 82 | B159: 2.883265466 | C159: 1663.68767 | D159: 234.9567342 | E159: 0.1926063537 | F159: 0.7634167617 | G159: 0.7899626802
A160: 83 | B160: 3.842039881 | C160: 1233.453422 | D160: 524.7458893 | E160: 0.2819882843 | F160: 0.7220794394 | G160: 0.8223649627
A161: 84 | B161: 2.255930888 | C161: 1041.171415 | D161: 292.4344904 | E161: 0.312353685 | F161: 0.758923208 | G161: 0.8953115903
A162: 85 | B162: 2.83762426 | C162: 1805.805114 | D162: 400.9327191 | E162: 0.2083200061 | F162: 0.7443800049 | G162: 0.8561739792
A163: 86 | B163: 2.481481675 | C163: 1266.998738 | D163: 125.9862447 | E163: 0.2075488694 | F163: 1.041297232 | G163: 0.8010510315
A164: 87 | B164: 3.021778126 | C164: 1235.016854 | D164: 253.1357261 | E164: 0.1383314478 | F164: 0.7286673645 | G164: 0.8398550625
A165: 88 | B165: 2.262156635 | C165: 1765.96436 | D165: 127.8754977 | E165: 0.1887756641 | F165: 0.836735661 | G165: 0.8510414915
A166: 89 | B166: 3.102578647 | C166: 1424.419084 | D166: 147.5351804 | E166: 0.2743130001 | F166: 0.8140848192 | G166: 0.8542325925
A167: 90 | B167: 3.780491114 | C167: 1772.237271 | D167: 128.0052642 | E167: 0.2479218545 | F167: 1.113715459 | G167: 0.7285565117
A168: 91 | B168: 2.636617465 | C168: 1608.200095 | D168: 274.6162285 | E168: 0.03039845225 | F168: 1.049047311 | G168: 0.7146013728
A169: 92 | B169: 2.059815885 | C169: 1814.462532 | D169: 179.8321609 | E169: 0.5123908546 | F169: 1.462256808 | G169: 0.755892797
A170: 93 | B170: 3.522453834 | C170: 1444.285927 | D170: 194.5112623 | E170: 0.0888277195 | F170: 0.7130059538 | G170: 0.7364648578
A171: 94 | B171: 3.22956813 | C171: 623.7520277 | D171: 203.5722849 | E171: 0.3151115708 | F171: 0.8225157135 | G171: 0.8198995247
A172: 95 | B172: 2.814631019 | C172: 1963.736318 | D172: 382.4061419 | E172: 0.1232601041 | F172: 0.712932118 | G172: 0.8688671275
A173: 96 | B173: 1.409452688 | C173: 1271.49398 | D173: 116.3189692 | E173: 0.3261050015 | F173: 0.7547286416 | G173: 0.8172166129
A174: 97 | B174: 3.782495901 | C174: 1438.092771 | D174: 135.2541873 | E174: 0.1484362959 | F174: 0.7831649 | G174: 0.9456986433
A175: 98 | B175: 2.247666379 | C175: 1705.047812 | D175: 333.6964103 | E175: 0.1101366848 | F175: 0.7209667267 | G175: 0.791863227
A176: 99 | B176: 3.029376057 | C176: 1704.613031 | D176: 135.3598684 | E176: 0.1787258066 | F176: 0.793416602 | G176: 0.7656869181
A177: 100 | B177: 2.019089731 | C177: 1479.392081 | D177: 180.5845462 | E177: 0.2298322047 | F177: 0.7192860014 | G177: 0.7421950256
A178: 101 | B178: 2.59734043 | C178: 2070.041806 | D178: 134.2386009 | E178: 0.1206415184 | F178: 0.7393848045 | G178: 1.04469442
A179: 102 | B179: 1.738703632 | C179: 1759.110013 | D179: 361.0075029 | E179: 0.234035243 | F179: 0.7168909839 | G179: 0.7519867998
A180: 103 | B180: 1.575302723 | C180: 1125.042944 | D180: 239.2307656 | E180: 0.2362984867 | F180: 0.7788778196 | G180: 0.7541189204
A181: 104 | B181: 3.520070153 | C181: 1648.204538 | D181: 605.4833793 | E181: 0.1436109903 | F181: 0.8417842689 | G181: 0.7260588726
A182: 105 | B182: 2.974213375 | C182: 1416.433711 | D182: 335.137178 | E182: 0.2648756531 | F182: 0.723794306 | G182: 0.852157395
A183: 106 | B183: 2.652765972 | C183: 1724.050294 | D183: 99.4994153 | E183: 0.3264379051 | F183: 0.7167161145 | G183: 0.7384764141
A184: 107 | B184: 3.188732382 | C184: 1572.870034 | D184: 193.4726353 | E184: 0.2003829108 | F184: 0.972289848 | G184: 0.7470989863
A185: 108 | B185: 2.483223309 | C185: 1514.846928 | D185: 149.1954645 | E185: 0.3223444065 | F185: 0.92356926 | G185: 0.7334813096
A186: 109 | B186: 2.160167891 | C186: 1589.424773 | D186: 185.1590148 | E186: 0.455350096 | F186: 0.7193462065 | G186: 0.7859719018
A187: 110 | B187: 2.996347256 | C187: 2012.842133 | D187: 225.063404 | E187: 0.0825322953 | F187: 0.8008657662 | G187: 0.8069314937
A188: 111 | B188: 3.678479667 | C188: 1461.255228 | D188: 189.8868317 | E188: 0.1120941999 | F188: 0.8964767076 | G188: 1.017796005
A189: 112 | B189: 2.829382519 | C189: 1268.05238 | D189: 217.0770647 | E189: 0.2987497906 | F189: 0.7108503078 | G189: 0.7950655175
A190: 113 | B190: 3.257297418 | C190: 1899.604427 | D190: 134.1491653 | E190: 0.2699383311 | F190: 0.9568824458 | G190: 0.7236172983
A191: 114 | B191: 1.950586436 | C191: 1869.757461 | D191: 141.8015107 | E191: 0.2285217981 | F191: 0.8612532036 | G191: 0.9164707808
A192: 115 | B192: 3.759435222 | C192: 1400.176655 | D192: 131.0893226 | E192: 0.1953240255 | F192: 0.7109222837 | G192: 0.7316076364
A193: 116 | B193: 3.044311405 | C193: 1270.288485 | D193: 179.745945 | E193: 0.09801011064 | F193: 0.8264466489 | G193: 0.765429593
A194: 117 | B194: 2.369938941 | C194: 1604.458967 | D194: 96.41792174 | E194: 0.1336083786 | F194: 0.7188362782 | G194: 0.8719480746
A195: 118 | B195: 2.982008173 | C195: 996.1763483 | D195: 267.3492969 | E195: 0.3261939554 | F195: 0.8156374788 | G195: 0.8886142092
A196: 119 | B196: 2.855037483 | C196: 1769.024775 | D196: 101.4697252 | E196: 0.3089704451 | F196: 0.7456088925 | G196: 0.8079124503
A197: 120 | B197: 1.321315434 | C197: 1564.844875 | D197: 208.7347783 | E197: 0.2157752825 | F197: 0.7510870477 | G197: 0.7411004334
A198: 121 | B198: 2.03535668 | C198: 1272.429971 | D198: 170.5261503 | E198: 0.3901717813 | F198: 0.7873927339 | G198: 0.7586386461
A199: 122 | B199: 2.396069187 | C199: 1386.239762 | D199: 253.3696216 | E199: 0.1183202479 | F199: 0.7212849258 | G199: 0.8507145637
A200: 123 | B200: 3.180760557 | C200: 1484.446489 | D200: 154.5980388 | E200: 0.1017014098 | F200: 0.7681901412 | G200: 0.7224091696
A201: 124 | B201: 2.118732874 | C201: 1566.462782 | D201: 512.8659862 | E201: 0.1798624386 | F201: 0.8206006992 | G201: 0.7218303123
A202: 125 | B202: 3.457080278 | C202: 2095.145937 | D202: 139.4974884 | E202: 0.1970203274 | F202: 0.8127027737 | G202: 0.9407226224
A203: 126 | B203: 1.982230569 | C203: 1594.171694 | D203: 534.6492135 | E203: 0.2779864848 | F203: 0.8011585536 | G203: 0.8455070989
A204: 127 | B204: 2.664594716 | C204: 1809.396262 | D204: 269.3907442 | E204: 0.2618015317 | F204: 0.70824676 | G204: 0.7213550455
A205: 128 | B205: 1.744463056 | C205: 1721.007691 | D205: 221.7325381 | E205: 0.2211382503 | F205: 0.7654320526 | G205: 0.7236404049
A206: 129 | B206: 3.602205804 | C206: 1584.575088 | D206: 400.6424709 | E206: 0.466605469 | F206: 0.755435783 | G206: 0.7651325074
A207: 130 | B207: 2.550862888 | C207: 1587.372654 | D207: 143.3361199 | E207: 0.2098459908 | F207: 0.7775818967 | G207: 0.7510443129
A208: 131 | B208: 3.297566521 | C208: 1539.113847 | D208: 299.0414551 | E208: 0.1020440177 | F208: 0.9074505471 | G208: 0.7094784787
... 9869 more rows

Sheet Capital Investment Ex1
A1: Monte Carlo Example 1 (Chapter 10)
A2: This was the example of where we computed the risk of not saving enough money from new equipment to justify the lease. If you have read my first book How to Measure Anything, this is similar to the Chapter 9 Example, but a little simpler and with a better "dynamic" histogram. This runs 10,000 random scenarios. Try holding down the F9 key to recalcuate the scenarios. The histogram below and right will change slightly. This is a very simple Monte Carlo example.
A3: The annual lease. Savings per year must be greater to breakeven. | G3: 1000000
A4: Maximum Production Capacity | G4: 1250000
A5: Chance that lease will be a net gain. | G5: =AVERAGE(H16:H10015) -> 0.8524
A6: The risk that the breakeven will not be met (the new machine lease is a loss) | G6: =1-G5 -> 0.1476
D8: Units Demanded | E8: Savings per units
A9: Upper Bound | D9: 1750000 | E9: 2.5
A10: Mean | D10: 1000000 | E10: 2
A11: Lower Bound | D11: 250000 | E11: 1.5
A12: Standard Deviation | D12: =(D9-D11)/3.29 -> 455927.0517 | E12: =(E9-E11)/3.29 -> 0.3039513678
A13: PRNG -> | B13: 200001 | C13: 200002
A14: Scenarios | K14: Histogram
A15: Scenario # | B15: Units Demanded Random Number | C15: Savings Per Units Random Number | D15: Units Demanded (this incorporates the contraint that demand can't be less than zero) | E15: Actual Production (Given capacity constraint) | F15: Savings per units | G15: Savings ($ per year) | H15: Breakeven met? | K15: Bin ($millions) | L15: Cumulative Frequency | M15: Bin Frequency | N15: Cumulative Chance That Profit<Value on Horizontal Axis
A16: 1 | B16: =((MOD((MOD(MOD(999999999999989,MOD(A16*2499997+$B$13*1800451,7450589)*4658+7450581)*383,99991)*7440893+MOD(MOD(999999999999989,MOD(A16*2246527+$B$13*2399993,7450987)*7580+7560584)*17669,7440893))*1343,4294967296))+0.5)/2^32 -> 0.8547511232 | C16: =((MOD((MOD(MOD(999999999999989,MOD(A16*2499997+$C$13*1800451,7450589)*4658+7450581)*383,99991)*7440893+MOD(MOD(999999999999989,MOD(A16*2246527+$C$13*2399993,7450987)*7580+7560584)*17669,7440893))*1343,4294967296))+0.5)/2^32 -> 0.6638774254 | D16: =MAX(0,NORMINV(B16,D$10,D$12)) -> 1481928.714 | E16: =MIN(1250000,D16) -> 1250000 | F16: =NORMINV(C16,E$10,E$12) -> 2.128592305 | G16: =F16*E16-1000000 -> 1660740.382 | H16: =IF(G16>=0,1,0) -> 1 | K16: -1 | L16: =COUNTIF(G$16:G$10015,"<="&K16*1000000) -> 110 | M16: =L16 -> 110 | N16: =L16/10000 -> 0.011
A17: =A16+1 -> 2 | B17: =((MOD((MOD(MOD(999999999999989,MOD(A17*2499997+$B$13*1800451,7450589)*4658+7450581)*383,99991)*7440893+MOD(MOD(999999999999989,MOD(A17*2246527+$B$13*2399993,7450987)*7580+7560584)*17669,7440893))*1343,4294967296))+0.5)/2^32 -> 0.2270325428 | C17: =((MOD((MOD(MOD(999999999999989,MOD(A17*2499997+$C$13*1800451,7450589)*4658+7450581)*383,99991)*7440893+MOD(MOD(999999999999989,MOD(A17*2246527+$C$13*2399993,7450987)*7580+7560584)*17669,7440893))*1343,4294967296))+0.5)/2^32 -> 0.5920054353 | D17: =MAX(0,NORMINV(B17,D$10,D$12)) -> 658667.8671 | E17: =MIN(1250000,D17) -> 658667.8671 | F17: =NORMINV(C17,E$10,E$12) -> 2.070731534 | G17: =F17*E17-1000000 -> 363924.323 | H17: =IF(G17>=0,1,0) -> 1 | K17: =K16+0.2 -> -0.8 | L17: 210 | M17: =L17-L16 -> 100 | N17: =L17/10000 -> 0.021
A18: =A17+1 -> 3 | B18: 0.7017324102 | C18: 0.9454729991 | D18: 1241363.06 | E18: =MIN(1250000,D18) -> 1241363.06 | F18: 2.487069805 | G18: 2087356.584 | H18: 1 | K18: =K17+0.2 -> -0.6 | L18: 364 | M18: 154 | N18: 0.0364
A19: 4 | B19: 0.2664737866 | C19: 0.6957575554 | D19: 715723.6333 | E19: 715723.6333 | F19: 2.15569525 | G19: 542882.0369 | H19: 1 | K19: -0.4 | L19: 611 | M19: 247 | N19: =L19/10000 -> 0.0611
A20: 5 | B20: 0.2553793163 | C20: 0.1675706204 | D20: 700156.4352 | E20: 700156.4352 | F20: 1.707048662 | G20: 195201.1058 | H20: 1 | K20: -0.2 | L20: 977 | M20: 366 | N20: 0.0977
A21: 6 | B21: 0.06941630773 | C21: 0.6745444202 | D21: 325158.5405 | E21: 325158.5405 | F21: 2.137537007 | G21: -304961.5864 | H21: 0 | K21: 0 | L21: =COUNTIF(G$16:G$10015,"<="&K21*1000000) -> 1476 | M21: 499 | N21: 0.1476
A22: 7 | B22: 0.6206234839 | C22: 0.215193713 | D22: 1140023.719 | E22: 1140023.719 | F22: 1.760325575 | G22: 1006812.909 | H22: 1 | K22: 0.2 | L22: 2037 | M22: 561 | N22: 0.2037
A23: 8 | B23: 0.1334833727 | C23: 0.01486915734 | D23: 493886.8166 | E23: 493886.8166 | F23: 1.339343948 | G23: -338515.6811 | H23: 0 | K23: 0.4 | L23: 2719 | M23: 682 | N23: 0.2719
A24: 9 | B24: 0.9815284676 | C24: 0.3565695406 | D24: 1951242.877 | E24: 1250000 | F24: 1.888254258 | G24: 1360317.822 | H24: 1 | K24: 0.6 | L24: 3512 | M24: 793 | N24: 0.3512
A25: 10 | B25: 0.8241799438 | C25: 0.08928603714 | D25: 1424656.256 | E25: 1250000 | F25: 1.59113537 | G25: 988919.2119 | H25: 1 | K25: 0.8 | L25: 4411 | M25: 899 | N25: 0.4411
A26: 11 | B26: 0.4291229531 | C26: 0.1340583075 | D26: 918568.0098 | E26: 918568.0098 | F26: 1.663401153 | G26: 527947.0866 | H26: 1 | K26: 1 | L26: 5369 | M26: 958 | N26: 0.5369
A27: 12 | B27: 0.9804155027 | C27: 0.217409561 | D27: 1940307.185 | E27: 1250000 | F27: 1.762622575 | G27: 1203278.218 | H27: 1 | K27: 1.2 | L27: 6425 | M27: 1056 | N27: 0.6425
A28: 13 | B28: 0.4291129893 | C28: 0.9138737457 | D28: 918556.4397 | E28: 918556.4397 | F28: 2.414894141 | G28: 1218216.564 | H28: 1 | K28: 1.4 | L28: 7498 | M28: 1073 | N28: 0.7498
A29: 14 | B29: 0.393976923 | C29: 0.5036059808 | D29: 877369.9391 | E29: 877369.9391 | F29: 2.002747409 | G29: 757150.3725 | H29: 1 | K29: 1.6 | L29: 8483 | M29: =L29-L28 -> 985 | N29: 0.8483
A30: 15 | B30: 0.6363705342 | C30: 0.5429680614 | D30: 1159015.533 | E30: 1159015.533 | F30: 2.032800621 | G30: 1356047.496 | H30: 1 | K30: 1.8 | L30: 9197 | M30: 714 | N30: 0.9197
A31: 16 | B31: 0.3898053424 | C31: 0.3580621731 | D31: 872419.5677 | E31: 872419.5677 | F31: 1.889470104 | G31: 648410.6916 | H31: 1 | K31: 2 | L31: 9698 | M31: 501 | N31: 0.9698
A32: 17 | B32: 0.3088229023 | C32: 0.9351768362 | D32: 772405.9471 | E32: 772405.9471 | F32: 2.460637701 | G32: 900611.1936 | H32: 1 | K32: 2.2 | L32: 9913 | M32: 215 | N32: 0.9913
A33: 18 | B33: 0.4737805383 | C33: 0.1736365288 | D33: 970013.7554 | E33: 970013.7554 | F33: 1.714318598 | G33: 662912.6214 | H33: 1 | K33: 2.4 | L33: 9978 | M33: 65 | N33: 0.9978
A34: 19 | B34: 0.3573469679 | C34: 0.5286596381 | D34: 833331.6176 | E34: 833331.6176 | F34: 2.021854396 | G34: 684875.1943 | H34: 1 | K34: 2.6 | L34: 9997 | M34: 19 | N34: 0.9997
A35: 20 | B35: 0.3307688866 | C35: 0.1686380761 | D35: 800399.226 | E35: 800399.226 | F35: 1.70834009 | G35: 367354.0853 | H35: 1 | K35: 2.8 | L35: 9999 | M35: 2 | N35: 0.9999
A36: 21 | B36: 0.3248365523 | C36: 0.6247934996 | D36: 792910.4713 | E36: 792910.4713 | F36: 2.09668536 | G36: 662483.7773 | H36: 1 | K36: 3 | L36: 9999 | M36: 0 | N36: 0.9999
A37: 22 | B37: 0.05651165952 | C37: 0.9636225227 | D37: 277469.9506 | E37: 277469.9506 | F37: 2.545399648 | G37: -293728.0855 | H37: 0 | K37: 3.2 | L37: 10000 | M37: 1 | N37: 1
A38: 23 | B38: 0.5460996233 | C38: 0.530173561 | D38: 1052802.276 | E38: 1052802.276 | F38: 2.02301099 | G38: 1129830.575 | H38: 1 | K38: 3.4 | L38: 10000 | M38: 0 | N38: 1
A39: 24 | B39: 0.9894987369 | C39: 0.1247775733 | D39: 2052251.851 | E39: 1250000 | F39: 1.650021106 | G39: 1062526.382 | H39: 1 | K39: 3.6 | L39: 10000 | M39: 0 | N39: 1
A40: 25 | B40: 0.3759683204 | C40: 0.6122860176 | D40: 855887.4864 | E40: 855887.4864 | F40: 2.086711909 | G40: 785990.6102 | H40: 1 | K40: 3.8 | L40: 10000 | M40: 0 | N40: 1
A41: 26 | B41: 0.9893606371 | C41: 0.8140231451 | D41: 2050000.951 | E41: 1250000 | F41: 2.271373783 | G41: 1839217.229 | H41: 1
A42: 27 | B42: 0.6831770985 | C42: 0.9623229763 | D42: 1217295.588 | E42: 1217295.588 | F42: 2.540517734 | G42: 2092561.03 | H42: 1
A43: 28 | B43: 0.04894885898 | C43: 0.2808193966 | D43: 245380.5312 | E43: 245380.5312 | F43: 1.823583871 | G43: -552528.0211 | H43: 0
A44: 29 | B44: 0.5972712709 | C44: 0.802547332 | D44: 1112290.446 | E44: 1112290.446 | F44: 2.258588216 | G44: 1512206.093 | H44: 1
A45: 30 | B45: 0.9732474628 | C45: 0.07131741231 | D45: 1880313.961 | E45: 1250000 | F45: 1.554392274 | G45: 942990.3431 | H45: 1
A46: 31 | B46: 0.5574505379 | C46: 0.6395773942 | D46: 1065885.346 | E46: 1065885.346 | F46: 2.108610764 | G46: 1247537.315 | H46: 1
A47: 32 | B47: 0.7708754222 | C47: 0.7100994237 | D47: 1338176.114 | E47: 1250000 | F47: 2.168290333 | G47: 1710362.917 | H47: 1
A48: 33 | B48: 0.5136006939 | C48: 0.7419913177 | D48: 1015546.424 | E48: 1015546.424 | F48: 2.197415417 | G48: 1231577.369 | H48: 1
A49: 34 | B49: 0.8146066804 | C49: 0.2061597008 | D49: 1408055.094 | E49: 1250000 | F49: 1.750814949 | G49: 1188518.686 | H49: 1
A50: 35 | B50: 0.7286856541 | C50: 0.02570284239 | D50: 1277587.868 | E50: 1250000 | F50: 1.407879165 | G50: 759848.9557 | H50: 1
A51: 36 | B51: 0.7227746259 | C51: 0.1196453924 | D51: 1269500.298 | E51: 1250000 | F51: 1.642321787 | G51: 1052902.234 | H51: 1
A52: 37 | B52: 0.7127024388 | C52: 0.2443744306 | D52: 1255910.462 | E52: 1250000 | F52: 1.789574425 | G52: 1236968.031 | H52: 1
A53: 38 | B53: 0.8074107551 | C53: 0.21452454 | D53: 1395924.473 | E53: 1250000 | F53: 1.759629202 | G53: 1199536.502 | H53: 1
A54: 39 | B54: 0.9551924333 | C54: 0.5903405071 | D54: 1773904.886 | E54: 1250000 | F54: 2.069428867 | G54: 1586786.084 | H54: 1
A55: 40 | B55: 0.06606249313 | C55: 0.2856768515 | D55: 313476.5203 | E55: 313476.5203 | F55: 1.827945606 | G55: -426981.9721 | H55: 0
A56: 41 | B56: 0.4471929491 | C56: 0.8463526802 | D56: 939472.6861 | E56: 939472.6861 | F56: 2.310308557 | G56: 1170471.786 | H56: 1
A57: 42 | B57: 0.08991271362 | C57: 0.1441090592 | D57: 388468.3574 | E57: 388468.3574 | F57: 1.677191886 | G57: -348464.0232 | H57: 0
A58: 43 | B58: 0.4880042345 | C58: 0.8665303719 | D58: 986288.6972 | E58: 986288.6972 | F58: 2.337428181 | G58: 1305378.996 | H58: 1
A59: 44 | B59: 0.8110976393 | C59: 0.164489437 | D59: 1402104.126 | E59: 1250000 | F59: 1.703290963 | G59: 1129113.704 | H59: 1
A60: 45 | B60: 0.5903898695 | C60: 0.4876523277 | D60: 1104201.206 | E60: 1104201.206 | F60: 1.990590891 | G60: 1198012.863 | H60: 1
A61: 46 | B61: 0.793330504 | C61: 0.08143786911 | D61: 1372962.857 | E61: 1250000 | F61: 1.575846581 | G61: 969808.2267 | H61: 1
A62: 47 | B62: 0.3000386151 | C62: 0.4562483801 | D62: 760962.2546 | E62: 760962.2546 | F62: 1.96659884 | G62: 496507.4876 | H62: 1
A63: 48 | B63: 0.8012011159 | C63: 0.665072654 | D63: 1385677.49 | E63: 1250000 | F63: 2.129588889 | G63: 1661986.111 | H63: 1
A64: 49 | B64: 0.3719523795 | C64: 0.3349752555 | D64: 851054.6347 | E64: 851054.6347 | F64: 1.870451085 | G64: 591856.0651 | H64: 1
A65: 50 | B65: 0.7479818572 | C65: 0.6246392735 | D65: 1304628.776 | E65: 1250000 | F65: 2.096561767 | G65: 1620702.209 | H65: 1
A66: 51 | B66: 0.4664601424 | C66: 0.7250580656 | D66: 961624.0551 | E66: 961624.0551 | F66: 2.181742904 | G66: 1098016.459 | H66: 1
A67: 52 | B67: 0.4153708286 | C67: 0.9794593732 | D67: 902545.3818 | E67: 902545.3818 | F67: 2.620884194 | G67: 1365466.925 | H67: 1
A68: 53 | B68: 0.5254434448 | C68: 0.4493651037 | D68: 1029097.518 | E68: 1029097.518 | F68: 1.961317455 | G68: 1018386.925 | H68: 1
A69: 54 | B69: 0.198556305 | C69: 0.1871930897 | D69: 613925.8811 | E69: 613925.8811 | F69: 1.730003832 | G69: 62094.12686 | H69: 1
A70: 55 | B70: 0.412690488 | C70: 0.8571558894 | D70: 899409.0699 | E70: 899409.0699 | F70: 2.324507076 | G70: 1090682.748 | H70: 1
A71: 56 | B71: 0.323026565 | C71: 0.564946348 | D71: 790614.5372 | E71: 790614.5372 | F71: 2.049702793 | G71: 620524.825 | H71: 1
A72: 57 | B72: 0.6147282625 | C72: 0.5391049079 | D72: 1132977.544 | E72: 1132977.544 | F72: 2.029841631 | G72: 1299764.987 | H72: 1
A73: 58 | B73: 0.7802640382 | C73: 0.8919359477 | D73: 1352470.484 | E73: 1250000 | F73: 2.375954259 | G73: 1969942.823 | H73: 1
A74: 59 | B74: 0.2355889356 | C74: 0.6559588359 | D74: 671475.4253 | E74: 671475.4253 | F74: 2.122023967 | G74: 424886.9456 | H74: 1
A75: 60 | B75: 0.3954261512 | C75: 0.650489932 | D75: 879086.3156 | E75: 879086.3156 | F75: 2.117520826 | G75: 861483.5812 | H75: 1
A76: 61 | B76: 0.4105730584 | C76: 0.5468109002 | D76: 896928.0671 | E76: 896928.0671 | F76: 2.035747138 | G76: 825918.7455 | H76: 1
A77: 62 | B77: 0.2895060017 | C77: 0.676969089 | D77: 747038.6993 | E77: 747038.6993 | F77: 2.139586629 | G77: 598354.0124 | H77: 1
A78: 63 | B78: 0.4459331132 | C78: 0.7291921239 | D78: 938019.8422 | E78: 938019.8422 | F78: 2.185523248 | G78: 1050064.172 | H78: 1
A79: 64 | B79: 0.06349573901 | C79: 0.3385856148 | D79: 304221.6569 | E79: 304221.6569 | F79: 1.873457043 | G79: -430053.7943 | H79: 0
A80: 65 | B80: 0.4918975722 | C80: 0.8029620693 | D80: 990739.5876 | E80: 990739.5876 | F80: 2.259042273 | G80: 1238122.61 | H80: 1
A81: 66 | B81: =((MOD((MOD(MOD(999999999999989,MOD(A81*2499997+$B$13*1800451,7450589)*4658+7450581)*383,99991)*7440893+MOD(MOD(999999999999989,MOD(A81*2246527+$B$13*2399993,7450987)*7580+7560584)*17669,7440893))*1343,4294967296))+0.5)/2^32 -> 0.2684911877 | C81: =((MOD((MOD(MOD(999999999999989,MOD(A81*2499997+$C$13*1800451,7450589)*4658+7450581)*383,99991)*7440893+MOD(MOD(999999999999989,MOD(A81*2246527+$C$13*2399993,7450987)*7580+7560584)*17669,7440893))*1343,4294967296))+0.5)/2^32 -> 0.3760445678 | D81: =MAX(0,NORMINV(B81,D$10,D$12)) -> 718518.5571 | E81: 718518.5571 | F81: =NORMINV(C81,E$10,E$12) -> 1.903986057 | G81: =F81*E81-1000000 -> 368049.3145 | H81: =IF(G81>=0,1,0) -> 1
A82: =A81+1 -> 67 | B82: 0.1522867602 | C82: 0.7903095282 | D82: 531911.0897 | E82: =MIN(1250000,D82) -> 531911.0897 | F82: 2.245439426 | G82: 194374.1321 | H82: 1
A83: 68 | B83: 0.4726592809 | C83: 0.3545678247 | D83: 968729.4429 | E83: 968729.4429 | F83: 1.886620915 | G83: 827625.2275 | H83: 1
A84: 69 | B84: 0.7271613247 | C84: 0.5978715041 | D84: 1275493.984 | E84: 1250000 | F84: 2.075331783 | G84: 1594164.729 | H84: 1
A85: 70 | B85: 0.8714767759 | C85: 0.9701919724 | D85: 1516747.575 | E85: 1250000 | F85: 2.572529638 | G85: 2215662.047 | H85: 1
A86: 71 | B86: 0.8557712844 | C86: 0.2178769527 | D86: 1483971.887 | E86: 1250000 | F86: 1.763105353 | G86: 1203881.691 | H86: 1
A87: 72 | B87: 0.6665209861 | C87: 0.7046215596 | D87: 1196197.571 | E87: 1196197.571 | F87: 2.163446667 | G87: 1587909.648 | H87: 1
A88: 73 | B88: 0.06775406364 | C88: 0.1043815847 | D88: 319424.4476 | E88: 319424.4476 | F88: 1.617941133 | G88: -483190.0472 | H88: 0
A89: 74 | B89: 0.5748270209 | C89: 0.9779354971 | D89: 1086022.96 | E89: 1086022.96 | F89: 2.611812572 | G89: 1836488.422 | H89: 1
A90: 75 | B90: 0.1148115481 | C90: 0.7844240248 | D90: 452281.0123 | E90: 452281.0123 | F90: 2.239277188 | G90: 12782.55352 | H90: 1
A91: 76 | B91: 0.8098838347 | C91: 0.7356158943 | D91: 1400061.534 | E91: 1250000 | F91: 2.191455158 | G91: 1739318.948 | H91: 1
A92: 77 | B92: 0.02365074342 | C92: 0.3859415479 | D92: 95627.34055 | E92: 95627.34055 | F92: 1.911880666 | G92: -817171.9364 | H92: 0
A93: 78 | B93: 0.5643146873 | C93: 0.5185003477 | D93: 1073822.682 | E93: 1073822.682 | F93: 2.014100343 | G93: 1162786.632 | H93: 1
A94: 79 | B94: 0.5961953417 | C94: 0.411991051 | D94: 1111023.398 | E94: 1111023.398 | F94: 1.932393246 | G94: 1146934.111 | H94: 1
A95: 80 | B95: 0.7376142164 | C95: 0.4858881928 | D95: 1289973.001 | E95: 1250000 | F95: 1.989246068 | G95: 1486557.585 | H95: 1
A96: 81 | B96: 0.8895178047 | C96: 0.8366699711 | D96: 1558040.011 | E96: 1250000 | F96: 2.298134803 | G96: 1872668.504 | H96: 1
A97: 82 | B97: 0.747471484 | C97: 0.8475079102 | D97: 1303900.02 | E97: 1250000 | F97: 2.3117944 | G97: 1889743 | H97: 1
A98: 83 | B98: 0.3440335769 | C98: 0.4109211004 | D98: 816954.6511 | E98: 816954.6511 | F98: 1.931557385 | G98: 577994.7895 | H98: 1
A99: 84 | B99: 0.102422702 | C99: 0.5698140644 | D99: 421945.0773 | E99: 421945.0773 | F99: 2.053465291 | G99: -133550.429 | H99: 0
A100: 85 | B100: 0.3127171403 | C100: 0.3651918507 | D100: 777433.2123 | E100: 777433.2123 | F100: 1.895253748 | G100: 473433.2097 | H100: 1
A101: 86 | B101: 0.73111858 | C101: 0.5747209458 | D101: 1280942.034 | E101: 1250000 | F101: 2.057266373 | G101: 1571582.966 | H101: 1
A102: 87 | B102: 0.9559418809 | C102: 0.663862771 | D102: 1777546.826 | E102: 1250000 | F102: 2.128580095 | G102: 1660725.119 | H102: 1
A103: 88 | B103: 0.8169446989 | C103: 0.2376766208 | D103: 1412059.012 | E103: 1250000 | F103: 1.783040684 | G103: 1228800.855 | H103: 1
A104: 89 | B104: 0.3252209938 | C104: 0.9287105176 | D104: 793397.4507 | E104: 793397.4507 | F104: 2.445670062 | G104: 940388.3925 | H104: 1
A105: 90 | B105: 0.1558930468 | C105: 0.5535778565 | D105: 538838.2813 | E105: 538838.2813 | F105: 2.040944089 | G105: 99738.80524 | H105: 1
A106: 91 | B106: 0.02470834006 | C106: 0.4290995406 | D106: 104112.9651 | E106: 104112.9651 | F106: 1.945693882 | G106: -797428.0408 | H106: 0
A107: 92 | B107: 0.8636422107 | C107: 0.6738378553 | D107: 1500074.609 | E107: 1250000 | F107: 2.136940912 | G107: 1671176.141 | H107: 1
A108: 93 | B108: 0.1894845843 | C108: 0.7830175882 | D108: 598876.6454 | E108: 598876.6454 | F108: 2.237819161 | G108: 340177.6319 | H108: 1
A109: 94 | B109: 0.1147665785 | C109: 0.060794833 | D109: 452175.2452 | E109: 452175.2452 | F109: 1.529442084 | G109: -308424.1507 | H109: 0
A110: 95 | B110: 0.8778843089 | C110: 0.8308843983 | D110: 1530915.864 | E110: 1250000 | F110: 2.291083893 | G110: 1863854.866 | H110: 1
A111: 96 | B111: 0.05242635834 | C111: 0.1319747363 | D111: 260591.4248 | E111: 260591.4248 | F111: 1.660454436 | G111: -567299.8128 | H111: 0
A112: 97 | B112: 0.8088079166 | C112: 0.4780169501 | D112: 1398257.668 | E112: 1250000 | F112: 1.983242781 | G112: 1479053.476 | H112: 1
A113: 98 | B113: 0.1079217974 | C113: 0.2078271372 | D113: 435719.0928 | E113: 435719.0928 | F113: 1.752588533 | G113: -236363.7142 | H113: 0
A114: 99 | B114: 0.4842501396 | C114: 0.0938626827 | D114: 981995.757 | E114: 981995.757 | F114: 1.599593324 | G114: 570793.8573 | H114: 1
A115: 100 | B115: 0.200448603 | C115: 0.4018032086 | D115: 617012.185 | E115: 617012.185 | F115: 1.924412626 | G115: 187386.0393 | H115: 1
A116: 101 | B116: 0.9356216994 | C116: 0.7488132463 | D116: 1692563.869 | E116: 1250000 | F116: 2.203878384 | G116: 1754847.98 | H116: 1
A117: 102 | B117: 0.1616723508 | C117: 0.06286548881 | D117: 549722.8288 | E117: 549722.8288 | F117: 1.534603206 | G117: -156393.5845 | H117: 0
A118: 103 | B118: 0.2685918427 | C118: 0.2158710264 | D118: 718657.7279 | E118: 718657.7279 | F118: 1.761029142 | G118: 265577.2016 | H118: 1
A119: 104 | B119: 0.5533623238 | C119: 0.7128419582 | D119: 1061167.579 | E119: 1061167.579 | F119: 2.170731424 | G119: 1303509.809 | H119: 1
A120: 105 | B120: 0.6740798176 | C120: 0.802997182 | D120: 1205717.477 | E120: 1205717.477 | F120: 2.259080742 | G120: 1723813.133 | H120: 1
A121: 106 | B121: 0.6672853391 | C121: 0.4352749252 | D121: 1197156.282 | E121: 1197156.282 | F121: 1.950468055 | G121: 1335015.084 | H121: 1
A122: 107 | B122: 0.08072740224 | C122: 0.8972831784 | D122: 361613.0266 | E122: 361613.0266 | F122: 2.384869883 | G122: -137599.9835 | H122: 0
A123: 108 | B123: 0.2133765208 | C123: 0.2627345388 | D123: 637647.3526 | E123: 637647.3526 | F123: 1.807009831 | G123: 152235.0352 | H123: 1
A124: 109 | B124: 0.9544491385 | C124: 0.06836148433 | D124: 1770340.974 | E124: 1250000 | F124: 1.547688177 | G124: 934610.2216 | H124: 1
A125: 110 | B125: 0.0869904448 | C125: 0.5110555413 | D125: 380156.6442 | E125: 380156.6442 | F125: 2.008424219 | G125: -236484.1889 | H125: 0
A126: 111 | B126: 0.9966944837 | C126: 0.6797335284 | D126: 2238219.288 | E126: 1250000 | F126: 2.141931242 | G126: 1677414.052 | H126: 1
A127: 112 | B127: 0.1264586482 | C127: 0.6999882722 | D127: 478742.1625 | E127: 478742.1625 | F127: 2.159382001 | G127: 33787.20877 | H127: 1
A128: 113 | B128: 0.7934405756 | C128: 0.4049417399 | D128: 1373138.665 | E128: 1250000 | F128: 1.926876489 | G128: 1408595.611 | H128: 1
A129: 114 | B129: 0.1218955166 | C129: 0.4104496002 | D129: 468588.1385 | E129: 468588.1385 | F129: 1.931188878 | G129: -95067.79854 | H129: 0
A130: 115 | B130: 0.09819862677 | C130: 0.2607513744 | D130: 410995.05 | E130: 410995.05 | F130: 1.805157847 | G130: -258089.0602 | H130: 0
A131: 116 | B131: 0.7359647827 | C131: 0.0366850883 | D131: 1287669.114 | E131: 1250000 | F131: 1.455768659 | G131: 819710.8242 | H131: 1
A132: 117 | B132: 0.09019333881 | C132: 0.1998824208 | D132: 389255.8948 | E132: 389255.8948 | F132: 1.744060398 | G132: -321114.2092 | H132: 0
A133: 118 | B133: 0.4755956159 | C133: 0.1407751025 | D133: 972092.285 | E133: 972092.285 | F133: 1.672691957 | G133: 626010.9465 | H133: 1
A134: 119 | B134: 0.1161567791 | C134: 0.9577434432 | D134: 455431.4255 | E134: 455431.4255 | F134: 2.524340329 | G134: 149663.9145 | H134: 1
A135: 120 | B135: 0.8914295066 | C135: 0.2080996343 | D135: 1562689.748 | E135: 1250000 | F135: 1.752877577 | G135: 1191096.971 | H135: 1
A136: 121 | B136: 0.1889274343 | C136: 0.7771184597 | D136: 597938.1497 | E136: 597938.1497 | F136: 2.231762186 | G136: 334455.7519 | H136: 1
A137: 122 | B137: 0.1324578464 | C137: 0.791039233 | D137: 491710.7762 | E137: 491710.7762 | F137: 2.246210467 | G137: 104485.8922 | H137: 1
A138: 123 | B138: 0.9712756887 | C138: 0.7905486341 | D138: 1866207.544 | E138: 1250000 | F138: 2.245691903 | G138: 1807114.878 | H138: 1
A139: 124 | B139: 0.9703977887 | C139: 0.7327581818 | D139: 1860184.915 | E139: 1250000 | F139: 2.188807384 | G139: 1736009.23 | H139: 1
A140: 125 | B140: 0.7697223526 | C140: 0.3584752224 | D140: 1336443.519 | E140: 1250000 | F140: 1.889806247 | G140: 1362257.809 | H140: 1
A141: 126 | B141: 0.8196799547 | C141: 0.4480959511 | D141: 1416783.928 | E141: 1250000 | F141: 1.960342433 | G141: 1450428.042 | H141: 1
A142: 127 | B142: 0.7875898412 | C142: 0.06858547672 | D142: 1363869.207 | E142: 1250000 | F142: 1.548203932 | G142: 935254.9144 | H142: 1
A143: 128 | B143: 0.4286726719 | C143: 0.8917933024 | D143: 918045.0831 | E143: 918045.0831 | F143: 2.375720828 | G143: 1181018.825 | H143: 1
A144: 129 | B144: 0.5287982674 | C144: 0.1028351056 | D144: 1032940.437 | E144: 1032940.437 | F144: 1.615330931 | G144: 668540.6378 | H144: 1
A145: 130 | B145: =((MOD((MOD(MOD(999999999999989,MOD(A145*2499997+$B$13*1800451,7450589)*4658+7450581)*383,99991)*7440893+MOD(MOD(999999999999989,MOD(A145*2246527+$B$13*2399993,7450987)*7580+7560584)*17669,7440893))*1343,4294967296))+0.5)/2^32 -> 0.188318309 | C145: =((MOD((MOD(MOD(999999999999989,MOD(A145*2499997+$C$13*1800451,7450589)*4658+7450581)*383,99991)*7440893+MOD(MOD(999999999999989,MOD(A145*2246527+$C$13*2399993,7450987)*7580+7560584)*17669,7440893))*1343,4294967296))+0.5)/2^32 -> 0.04125954851 | D145: =MAX(0,NORMINV(B145,D$10,D$12)) -> 596910.1507 | E145: 596910.1507 | F145: =NORMINV(C145,E$10,E$12) -> 1.472263504 | G145: =F145*E145-1000000 -> -121190.97 | H145: =IF(G145>=0,1,0) -> 0
A146: =A145+1 -> 131 | B146: 0.6797125506 | C146: 0.2362870889 | D146: 1212870.127 | E146: =MIN(1250000,D146) -> 1212870.127 | F146: 1.781672644 | G146: 1160937.526 | H146: 1
A147: 132 | B147: 0.6712582799 | C147: 0.2699132509 | D147: 1202153.639 | E147: 1202153.639 | F147: 1.813654901 | G147: 1180291.839 | H147: 1
A148: 133 | B148: 0.2687393661 | C148: 0.2811344514 | D148: 718861.6538 | E148: 718861.6538 | F148: 1.823867868 | G148: 311108.6717 | H148: 1
A149: 134 | B149: 0.4039338668 | C149: 0.8091438211 | D149: 889128.7037 | E149: 889128.7037 | F149: 2.265880113 | G149: 1014659.048 | H149: 1
A150: 135 | B150: 0.2270474829 | C150: 0.2769230421 | D150: 658690.4634 | E150: 658690.4634 | F150: 1.820058746 | G150: 198855.3387 | H150: 1
A151: 136 | B151: 0.4227082165 | C151: 0.1142313873 | D151: 911107.9025 | E151: 911107.9025 | F151: 1.633942815 | G151: 488698.2106 | H151: 1
A152: 137 | B152: 0.6788391703 | C152: 0.9512123446 | D152: 1211757.684 | E152: 1211757.684 | F152: 2.503563492 | G152: 2033712.298 | H152: 1
A153: 138 | B153: 0.8794224527 | C153: 0.5148552555 | D153: 1534394.159 | E153: 1250000 | F153: 2.011320733 | G153: 1514150.917 | H153: 1
A154: 139 | B154: 0.1018140953 | C154: 0.8014820936 | D154: 420387.9497 | E154: 420387.9497 | F154: 2.25742462 | G154: -51005.89251 | H154: 0
A155: 140 | B155: 0.905288231 | C155: 0.03540818358 | D155: 1598306.844 | E155: 1250000 | F155: 1.450865285 | G155: 813581.6065 | H155: 1
A156: 141 | B156: 0.3889447028 | C156: 0.3093414766 | D156: 871396.4005 | E156: 871396.4005 | F156: 1.848717991 | G156: 610966.2029 | H156: 1
A157: 142 | B157: 0.8837519836 | C157: 0.1351162255 | D157: 1544355.845 | E157: 1250000 | F157: 1.664885287 | G157: 1081106.609 | H157: 1
A158: 143 | B158: 0.5215221165 | C158: 0.6935730706 | D158: 1024608.271 | E158: 1024608.271 | F158: 2.1538006 | G158: 1206801.909 | H158: 1
A159: 144 | B159: 0.683380908 | C159: 0.7923206281 | D159: 1217556.56 | E159: 1217556.56 | F159: 2.247568298 | G159: 1736541.526 | H159: 1
A160: 145 | B160: 0.8115960079 | C160: 0.3837818211 | D160: 1402945.121 | E160: 1250000 | F160: 1.910163146 | G160: 1387703.932 | H160: 1
A161: 146 | B161: 0.8677313979 | C161: 0.7662883362 | D161: 1508692.044 | E161: 1250000 | F161: 2.220874725 | G161: 1776093.407 | H161: 1
A162: 147 | B162: 0.4847230286 | C162: 0.8926242912 | D162: 982536.6023 | E162: 982536.6023 | F162: 2.377083822 | G162: 1335571.862 | H162: 1
A163: 148 | B163: 0.7986562893 | C163: 0.345557904 | D163: 1381534.011 | E163: 1250000 | F163: 1.879227573 | G163: 1349034.467 | H163: 1
A164: 149 | B164: 0.1795729949 | C164: 0.2692805802 | D164: 581917.8081 | E164: 581917.8081 | F164: 1.813072873 | G164: 55059.39211 | H164: 1
A165: 150 | B165: 0.7871780338 | C165: 0.6625179591 | D165: 1363222.446 | E165: 1250000 | F165: 2.127460458 | G165: 1659325.572 | H165: 1
A166: 151 | B166: 0.5357938401 | C166: 0.6792342608 | D166: 1040961.658 | E166: 1040961.658 | F166: 2.141507175 | G166: 1229226.859 | H166: 1
A167: 152 | B167: 0.4124283901 | C167: 0.6282622699 | D167: 899102.1315 | E167: 899102.1315 | F167: 2.09946943 | G167: 887637.4394 | H167: 1
A168: 153 | B168: 0.7157207009 | C168: 0.09453972348 | D168: 1259958.484 | E168: 1250000 | F168: 1.600818474 | G168: 1001023.093 | H168: 1
A169: 154 | B169: 0.5039764334 | C169: 0.6019130229 | D169: 1004544.501 | E169: 1004544.501 | F169: 2.078511202 | G169: 1087956.999 | H169: 1
A170: 155 | B170: 0.1307353236 | C170: 0.8868458272 | D170: 488029.5093 | E170: 488029.5093 | F170: 2.367757826 | G170: 155535.6901 | H170: 1
A171: 156 | B171: 0.322787319 | C171: 0.6312289963 | D171: 790310.6617 | E171: 790310.6617 | F171: 2.101857184 | G171: 661120.1419 | H171: 1
A172: 157 | B172: 0.625960864 | C172: 0.4894579571 | D172: 1146432.073 | E172: 1146432.073 | F172: 1.991967155 | G172: 1283655.035 | H172: 1
A173: 158 | B173: 0.4657726962 | C173: 0.4491466252 | D173: 960835.5685 | E173: 960835.5685 | F173: 1.961149638 | G173: 884342.3277 | H173: 1
A174: 159 | B174: 0.2854180221 | C174: 0.5707874947 | D174: 741571.1354 | E174: 741571.1354 | F174: 2.054218669 | G174: 523349.2706 | H174: 1
A175: 160 | B175: 0.7063442537 | C175: 0.3590604522 | D175: 1247448.085 | E175: 1247448.085 | F175: 1.890282281 | G175: 1358029.011 | H175: 1
A176: 161 | B176: 0.5266170277 | C176: 0.7423982172 | D176: 1030441.598 | E176: 1030441.598 | F176: 2.197798384 | G176: 1264702.878 | H176: 1
A177: 162 | B177: 0.5163146622 | C177: 0.1405188026 | D177: 1018650.243 | E177: 1018650.243 | F177: 1.672343047 | G177: 703532.6506 | H177: 1
A178: 163 | B178: 0.09734046704 | C178: 0.293362626 | D178: 408728.527 | E178: 408728.527 | F178: 1.834775787 | G178: -250074.7954 | H178: 0
A179: 164 | B179: 0.9552705098 | C179: 0.09869254509 | D179: 1774281.999 | E179: 1250000 | F179: 1.608195324 | G179: 1010244.155 | H179: 1
A180: 165 | B180: 0.8878220193 | C180: 0.4786788918 | D180: 1553963.477 | E180: 1250000 | F180: 1.983747854 | G180: 1479684.818 | H180: 1
A181: 166 | B181: 0.973194979 | C181: 0.4833413792 | D181: 1879927.42 | E181: 1250000 | F181: 1.987304221 | G181: 1484130.277 | H181: 1
A182: 167 | B182: 0.8320979475 | C182: 0.6688439002 | D182: 1438824.7 | E182: 1250000 | F182: 2.132742573 | G182: 1665928.216 | H182: 1
A183: 168 | B183: 0.7908704068 | C183: 0.2212220394 | D183: 1369047.904 | E183: 1250000 | F183: 1.766543295 | G183: 1208179.119 | H183: 1
A184: 169 | B184: 0.4167681703 | C184: 0.1005456968 | D184: 904178.5987 | E184: 904178.5987 | F184: 1.611413883 | G184: 457005.9463 | H184: 1
A185: 170 | B185: 0.8587164487 | C185: 0.4653490254 | D185: 1489925.722 | E185: 1250000 | F185: 1.973566379 | G185: 1466957.974 | H185: 1
A186: 171 | B186: 0.2200068265 | C186: 0.00427514629 | D186: 647946.7359 | E186: 647946.7359 | F186: 1.200750685 | G186: -221977.5128 | H186: 0
A187: 172 | B187: 0.2466908352 | C187: 0.7106296277 | D187: 687717.2436 | E187: 687717.2436 | F187: 2.16876141 | G187: 491494.6188 | H187: 1
A188: 173 | B188: 0.4048946406 | C188: 0.8287479087 | D188: 890259.3246 | E188: 890259.3246 | F188: 2.288519436 | G188: 1037375.768 | H188: 1
A189: 174 | B189: 0.4409714654 | C189: 0.7742496509 | D189: 932291.7967 | E189: 932291.7967 | F189: 2.228849694 | G189: 1077938.285 | H189: 1
A190: 175 | B190: 0.8869274697 | C190: 0.9014464788 | D190: 1551830.782 | E190: 1250000 | F190: 2.392047909 | G190: 1990059.887 | H190: 1
A191: 176 | B191: 0.8090947479 | C191: 0.5069970182 | D191: 1398737.954 | E191: 1250000 | F191: 2.005331253 | G191: 1506664.067 | H191: 1
A192: 177 | B192: 0.8480944947 | C192: 0.8471408115 | D192: 1468827.577 | E192: 1250000 | F192: 2.311321436 | G192: 1889151.795 | H192: 1
A193: 178 | B193: 0.4297502326 | C193: 0.2368874348 | D193: 919296.3122 | E193: 919296.3122 | F193: 1.782264245 | G193: 638428.9482 | H193: 1
A194: 179 | B194: 0.848081469 | C194: 0.3932947997 | D194: 1468802.32 | E194: 1250000 | F194: 1.917707649 | G194: 1397134.562 | H194: 1
A195: 180 | B195: 0.9694422175 | C195: 0.1031247721 | D195: 1853795.644 | E195: 1250000 | F195: 1.615821998 | G195: 1019777.498 | H195: 1
A196: 181 | B196: 0.4889807851 | C196: 0.3658114757 | D196: 987405.2028 | E196: 987405.2028 | F196: 1.895754576 | G196: 871877.9314 | H196: 1
A197: 182 | B197: 0.8389672212 | C197: 0.6567480239 | D197: 1451469.057 | E197: 1250000 | F197: 2.122675984 | G197: 1653344.98 | H197: 1
A198: 183 | B198: 0.3568882275 | C198: 0.1388149642 | D198: 832770.9981 | E198: 832770.9981 | F198: 1.670012491 | G198: 390737.9689 | H198: 1
A199: 184 | B199: 0.3434570933 | C199: 0.1005685636 | D199: 816240.3028 | E199: 816240.3028 | F199: 1.611453326 | G199: 315333.1507 | H199: 1
A200: 185 | B200: 0.2371449686 | C200: 0.07391742605 | D200: 673776.663 | E200: 673776.663 | F200: 1.560114997 | G200: 51169.0767 | H200: 1
A201: 186 | B201: 0.3482936517 | C201: 0.9787644813 | D201: 822219.7444 | E201: 822219.7444 | F201: 2.61667929 | G201: 1151485.377 | H201: 1
... 9814 more rows

Sheet Correlations in Data
A1: Examples of Correlations in Hypothetical Data and R2 (Chapter 10 and 12)
A2: For the purpose of learning about some basic statistical concepts used later with actual data, these are examples of correlations between some hypothetical "real world" data and predictions of the real world data based on data mined from the Internet. The real world data in this case is based on some weekly report and it could be about economic trends, public opinion, flu diagnosis or any other data collected from government reports or weekly surveys. The predictions could be based on Google searches on particular terms, purchases on eBay with a specific category, Tweets with certain words. The predictions would be orgainized like the real-world data into weekly or monthly segments. Ideally, several years of real-world data and Internet data would be compared to see what the correlation might be. Scroll below to see examples of calculations, examples of charts, and the original hypothetical data that these are based on. (In the next spreadsheet, we will use actual data from the Bureau of Labor Statistics and Google Searches on the word "unemployment")
C4: Predictions from Model 1 | D4: Predictions from Model 2 | E4: Predictions from Model 3
A5: Correlation "R"; This value could be anywhere from -1 to +1. A value of zero means two data sets are uncorrelated - knowing one tells us nothing about the other. A value of 1 means that two values move up and down in perfect harmony with each other such that if we know one we can exactly compute the other. A correlation of -1 also allows one value to be computed exactly from another value but the two move in perfect opposition (as one goes up the other goes down). | C5: -0.03833644083 | D5: 0.694222167 | E5: 0.9021973694
A6: R Squared; This value is simply the square of the correlation R. It can be intperpreted as the amount of variation in one variable that is "explained" by the other. If the R squared of X to Y is .8, then 80% of the variation of Y can be explained by variations in X and 20% of the variation in Y is independent of X. | C6: =C5^2 -> 0.001469682696 | D6: =D5^2 -> 0.4819444171 | E6: =E5^2 -> 0.8139600934
C7: Data from the Internet (Google searches on particular terms, purchases on eBay with a specific category, Tweets with certain words, etc.)
A8: XY Scatter Plots: "Scatter plots" give a visual representation of how data might be correlated. Each of the three hypothetical data sets produces very different looking scatter plots and the difference in correlation is visable. The data set with a correlation of nearly zero is to the far left and the data set with a correlation of about .9 is to the right. In the zero correlation set, knowing the predicted value tells us nothing about the actual value. In the example on the right, however, knowing the predicted value gives us a fairly good idea of what the actual value will be.
A16: Time Charts: Time charts show how data changes over time. In this case, we show the real world data changing in the dark color, and the predicted values changing in the lighter grey. In the data on the left the predicted values seem to go up and down independently of the actual data. Like the XY scatter plot, this shows us that knowing the predicted value from this model doesn't say much about the real world data. But the chart on the far right shows that the predicted data moves value closely with the actual data (The values are offset slightly vertically so the actual data doesn't overwrite the predicted data).
A23: Date of Data | B23: "Real World" data (e.g., economic trends, public opinion, flu diagnosis, etc.) | C23: Predictions from Model 1 | D23: Predictions from Model 2 | E23: Predictions from Model 3
A24: 2012-01-09 | B24: -0.3938893072 | C24: 1.414260493 | D24: -0.003403037692 | E24: -0.3458448672
A25: =A24+7 -> 2012-01-16 | B25: -0.4511109516 | C25: 1.351079871 | D25: -0.06053623335 | E25: -0.3136539257
A26: =A25+7 -> 2012-01-23 | B26: 0.3381705381 | C26: 1.478199121 | D26: 0.6155544172 | E26: 0.488838446
A27: 2012-01-30 | B27: 0.2628778971 | C27: 1.29805359 | D27: 0.5897212687 | E27: 0.7612766288
A28: 2012-02-06 | B28: 0.6515403184 | C28: 1.145927318 | D28: 0.9488318273 | E28: 1.087827904
A29: 2012-02-13 | B29: 0.1873529382 | C29: 1.120253949 | D29: 0.7838273396 | E29: 1.11162899
A30: 2012-02-20 | B30: 0.168127203 | C30: 1.490343293 | D30: 0.4857959253 | E30: 1.534006883
A31: 2012-02-27 | B31: 0.3628608949 | C31: 1.342572676 | D31: 0.2608129138 | E31: 1.553236841
A32: 2012-03-05 | B32: 0.5682936183 | C32: 1.329714199 | D32: 0.4884501329 | E32: 1.729225119
A33: 2012-03-12 | B33: 0.5984044371 | C33: 1.334737372 | D33: 0.3517084313 | E33: 1.842149741
A34: 2012-03-19 | B34: 0.6396056918 | C34: 0.709382823 | D34: 0.632712977 | E34: 1.731029315
A35: 2012-03-26 | B35: 0.06232220196 | C35: 0.4716965555 | D35: 0.4850618249 | E35: 1.222023569
A36: 2012-04-02 | B36: -0.08072242562 | C36: 1.220709891 | D36: 0.5614978835 | E36: 1.18151238
A37: 2012-04-09 | B37: 0.1013686119 | C37: 1.389393836 | D37: 0.8137916876 | E37: 1.444521918
A38: 2012-04-16 | B38: -0.06312227548 | C38: 1.731822388 | D38: 0.3901069342 | E38: 1.658604927
A39: 2012-04-23 | B39: -0.100275808 | C39: 1.867351198 | D39: 0.4992706498 | E39: 2.06848183
A40: 2012-04-30 | B40: -0.1221739212 | C40: 1.739758378 | D40: 0.7422065236 | E40: 2.052251478
A41: 2012-05-07 | B41: -0.1301960873 | C41: 2.35381712 | D41: 1.088356796 | E41: 1.981991858
A42: 2012-05-14 | B42: -0.5843200357 | C42: 2.061873545 | D42: 1.107069437 | E42: 1.857855565
A43: 2012-05-21 | B43: -1.187188138 | C43: 2.400847149 | D43: 0.6911866193 | E43: 1.135755529
A44: 2012-05-28 | B44: -0.8556581062 | C44: 2.378834127 | D44: 0.8696588202 | E44: 1.385278971
A45: 2012-06-04 | B45: -1.407626099 | C45: 2.510571282 | D45: 0.5288620452 | E45: 1.03939032
A46: 2012-06-11 | B46: -1.341133286 | C46: 2.478993065 | D46: 0.2539683815 | E46: 1.159441665
A47: 2012-06-18 | B47: -1.277550545 | C47: 2.596432023 | D47: 0.08082510831 | E47: 1.036541277
A48: 2012-06-25 | B48: -1.929058272 | C48: 3.147796265 | D48: 0.2115935207 | E48: 0.7940505372
A49: 2012-07-02 | B49: -1.361185812 | C49: 3.665859442 | D49: 0.4806045531 | E49: 1.133741055
A50: 2012-07-09 | B50: -0.9439164278 | C50: 3.768678583 | D50: 0.6614313724 | E50: 1.085219828
A51: 2012-07-16 | B51: -0.6988246005 | C51: 2.842513643 | D51: 0.4192956421 | E51: 1.336892787
A52: 2012-07-23 | B52: -0.3738984106 | C52: 2.601215784 | D52: 0.5903215215 | E52: 1.860976409
A53: 2012-07-30 | B53: -0.7234347016 | C53: 2.301849106 | D53: 0.3101427471 | E53: 1.830832114
A54: 2012-08-06 | B54: -0.5987585578 | C54: 3.103386114 | D54: 0.4097826135 | E54: 2.272382179
A55: 2012-08-13 | B55: -0.5504780914 | C55: 3.958638847 | D55: 0.5779560283 | E55: 2.195996312
A56: 2012-08-20 | B56: -0.3283946281 | C56: 4.200693789 | D56: 0.6921721179 | E56: 2.161354948
A57: 2012-08-27 | B57: -0.2065819469 | C57: 4.733470673 | D57: 0.898233841 | E57: 2.017575775
A58: 2012-09-03 | B58: -0.7321565866 | C58: 4.778426647 | D58: 0.5030644303 | E58: 1.615041045
A59: 2012-09-10 | B59: -0.539106437 | C59: 4.608666052 | D59: 0.7309048171 | E59: 1.800948756
A60: 2012-09-17 | B60: -0.6980036167 | C60: 4.587851038 | D60: 0.755986108 | E60: 1.573297481
A61: 2012-09-24 | B61: -1.529336247 | C61: 4.481781188 | D61: 0.3220017745 | E61: 0.9274156019
A62: 2012-10-01 | B62: -1.358735845 | C62: 4.418081966 | D62: 0.7632679087 | E62: 1.246993562
A63: 2012-10-08 | B63: -1.252716279 | C63: 3.637908583 | D63: 0.707656241 | E63: 0.9898052383
A64: 2012-10-15 | B64: -0.7440674254 | C64: 3.866194826 | D64: 1.141543671 | E64: 1.37867613
A65: 2012-10-22 | B65: -1.50249358 | C65: 4.541831566 | D65: 1.31901592 | E65: 0.6521964367
A66: 2012-10-29 | B66: -1.639447143 | C66: 4.172369442 | D66: 1.377496796 | E66: 0.5514307911
A67: 2012-11-05 | B67: -1.299322958 | C67: 3.938831992 | D67: 1.342999637 | E67: 0.9916759361
A68: 2012-11-12 | B68: -0.7248879273 | C68: 4.103614098 | D68: 1.646429133 | E68: 1.386341608
A69: 2012-11-19 | B69: -0.3270892879 | C69: 4.025961736 | D69: 1.458827406 | E69: 1.534533439
A70: 2012-11-26 | B70: -0.3496203997 | C70: 3.206413243 | D70: 1.346563259 | E70: 1.393374172
A71: 2012-12-03 | B71: -0.6690687085 | C71: 3.317808011 | D71: 1.192984948 | E71: 1.048835019
A72: 2012-12-10 | B72: -0.1915145394 | C72: 3.176664833 | D72: 1.415651404 | E72: 1.189306535
A73: 2012-12-17 | B73: -0.5130200825 | C73: 3.87714053 | D73: 1.259328138 | E73: 0.8110326501
A74: 2012-12-24 | B74: -0.5008874895 | C74: 4.092798256 | D74: 1.390885274 | E74: 0.9130406358
A75: 2012-12-31 | B75: -0.4674609352 | C75: 3.81202215 | D75: 1.341277617 | E75: 0.9758352709
A76: 2013-01-07 | B76: -0.2615101457 | C76: 3.781570949 | D76: 1.369345417 | E76: 1.256344273
A77: 2013-01-14 | B77: 0.462561338 | C77: 3.584071706 | D77: 1.289067931 | E77: 1.81405167
A78: 2013-01-21 | B78: 1.301631997 | C78: 3.745752103 | D78: 1.677378252 | E78: 2.565322515
A79: 2013-01-28 | B79: 1.811628549 | C79: 4.037889 | D79: 1.677548383 | E79: 3.0559158
A80: 2013-02-04 | B80: 1.830271846 | C80: 3.598940885 | D80: 1.603067029 | E80: 3.286167682
A81: 2013-02-11 | B81: 1.836787294 | C81: 3.59652001 | D81: 1.586979684 | E81: 3.733812755
A82: 2013-02-18 | B82: 1.194756608 | C82: 3.971646122 | D82: 1.357699213 | E82: 2.900608465
A83: 2013-02-25 | B83: 0.9298139568 | C83: 3.374601113 | D83: 1.288912609 | E83: 2.982378164
A84: 2013-03-04 | B84: 0.9856163311 | C84: 2.484508945 | D84: 1.640394967 | E84: 2.948296012
A85: 2013-03-11 | B85: 0.4624775519 | C85: 2.684013473 | D85: 1.341817961 | E85: 2.496574921
A86: 2013-03-18 | B86: 0.5847611225 | C86: 2.429586508 | D86: 1.392079847 | E86: 2.301910983
A87: 2013-03-25 | B87: 0.009002473495 | C87: 1.795950209 | D87: 0.8642642107 | E87: 1.763931419
A88: 2013-04-01 | B88: 0.1064940163 | C88: 1.849345719 | D88: 1.096675518 | E88: 1.676082573
A89: 2013-04-08 | B89: 0.1843348718 | C89: 1.982895023 | D89: 1.197110649 | E89: 1.769011199
A90: =A89+7 -> 2013-04-15 | B90: 0.06554875002 | C90: 1.206953371 | D90: 1.475943715 | E90: 1.707517134
A91: 2013-04-22 | B91: 0.1456309364 | C91: 1.106858044 | D91: 1.736616425 | E91: 1.604388085
A92: 2013-04-29 | B92: -0.3057842181 | C92: 1.983108652 | D92: 1.573108007 | E92: 1.283285947
A93: 2013-05-06 | B93: -0.8670646889 | C93: 1.963920621 | D93: 1.575998045 | E93: 0.9070081267
A94: 2013-05-13 | B94: -0.3206588845 | C94: 1.67291041 | D94: 1.60781129 | E94: 1.554398382
A95: 2013-05-20 | B95: 0.006538478549 | C95: 1.812150398 | D95: 2.044304984 | E95: 1.819763326
A96: 2013-05-27 | B96: 0.7545558031 | C96: 1.834713452 | D96: 2.184810221 | E96: 2.416994813
A97: 2013-06-03 | B97: 0.5535401062 | C97: 1.858439893 | D97: 2.220042337 | E97: 2.385849269
A98: 2013-06-10 | B98: 0.335451147 | C98: 2.301905389 | D98: 2.350851121 | E98: 2.293516804
A99: 2013-06-17 | B99: 0.1605165023 | C99: 1.558218726 | D99: 2.515077915 | E99: 1.87746359
A100: 2013-06-24 | B100: 0.6051177406 | C100: 1.557491019 | D100: 2.984232157 | E100: 2.359944209
A101: 2013-07-01 | B101: -0.00654445749 | C101: 1.539628782 | D101: 2.698479933 | E101: 2.361757846
A102: 2013-07-08 | B102: 0.2328512328 | C102: 1.510580723 | D102: 2.623477578 | E102: 2.56846647
A103: 2013-07-15 | B103: 0.1809717234 | C103: 0.7548223797 | D103: 2.922739256 | E103: 2.528985111
A104: 2013-07-22 | B104: 0.1577745294 | C104: 0.2883973859 | D104: 3.242693661 | E104: 2.607216653
A105: 2013-07-29 | B105: 0.8615422919 | C105: 0.8220039924 | D105: 3.38110259 | E105: 3.31456508
A106: 2013-08-05 | B106: 0.847897613 | C106: 0.9604048285 | D106: 3.820032996 | E106: 3.623739105
A107: 2013-08-12 | B107: 1.293990101 | C107: 1.554680063 | D107: 3.910339764 | E107: 3.830736453
A108: 2013-08-19 | B108: 1.290835092 | C108: 1.870116895 | D108: 4.262681955 | E108: 3.533902363
A109: 2013-08-26 | B109: 1.426891933 | C109: 2.271516228 | D109: 4.203666187 | E109: 3.562442786
A110: 2013-09-02 | B110: 0.7202870102 | C110: 2.603579947 | D110: 4.094229446 | E110: 3.06241458
A111: 2013-09-09 | B111: 0.6981207434 | C111: 2.540952495 | D111: 3.777029546 | E111: 3.063832847
A112: 2013-09-16 | B112: 1.094851712 | C112: 2.560874017 | D112: 3.624826861 | E112: 3.599142126
A113: 2013-09-23 | B113: 1.43435933 | C113: 1.618298397 | D113: 3.607069253 | E113: 3.991661401
A114: 2013-09-30 | B114: 2.054959838 | C114: 1.623281015 | D114: 4.0189504 | E114: 4.28190671
A115: 2013-10-07 | B115: 1.781366619 | C115: 1.851222286 | D115: 4.185095115 | E115: 4.475597036
A116: 2013-10-14 | B116: 1.955347166 | C116: 2.739270641 | D116: 4.066444495 | E116: 4.983346363
A117: 2013-10-21 | B117: 1.499160712 | C117: 3.197702218 | D117: 3.884263705 | E117: 4.744581121
A118: 2013-10-28 | B118: 1.460552696 | C118: 3.091858554 | D118: 3.986387179 | E118: 4.609957206
A119: 2013-11-04 | B119: 1.165362255 | C119: 3.127850172 | D119: 4.209861368 | E119: 4.473733484
A120: 2013-11-11 | B120: 0.8748144438 | C120: 3.254855525 | D120: 3.786626746 | E120: 4.138569668
A121: 2013-11-18 | B121: 0.6827937545 | C121: 3.363837223 | D121: 4.069034644 | E121: 3.868136717
A122: 2013-11-25 | B122: 0.3094002494 | C122: 3.361101957 | D122: 4.288324157 | E122: 3.612587915
A123: 2013-12-02 | B123: 0.08216693887 | C123: 3.848553771 | D123: 4.449475791 | E123: 3.559452516
A124: 2013-12-09 | B124: -0.2167286338 | C124: 3.975522481 | D124: 4.525028648 | E124: 3.572834922
A125: 2013-12-16 | B125: 0.1220052879 | C125: 3.188824872 | D125: 4.779539862 | E125: 3.748102682
A126: 2013-12-23 | B126: 0.8659739812 | C126: 3.353087582 | D126: 4.941140541 | E126: 4.286503844
A127: 2013-12-30 | B127: 0.7632948222 | C127: 3.374248984 | D127: 4.910703825 | E127: 4.153387168
A128: 2014-01-06 | B128: 0.3004873192 | C128: 2.960094363 | D128: 4.78246233 | E128: 3.824949048
A129: 2014-01-13 | B129: -0.06511064225 | C129: 2.24003347 | D129: 4.565202414 | E129: 3.457670135
A130: 2014-01-20 | B130: 0.1021428464 | C130: 2.851409548 | D130: 4.409130722 | E130: 3.537594256
A131: 2014-01-27 | B131: 0.07267972108 | C131: 3.429275241 | D131: 4.405848333 | E131: 3.619154066
A132: 2014-02-03 | B132: 0.2739874241 | C132: 3.481082835 | D132: 4.694018008 | E132: 3.740496942
A133: 2014-02-10 | B133: 0.3200738752 | C133: 3.806608647 | D133: 4.50492271 | E133: 4.006093588
A134: 2014-02-17 | B134: 0.9238326845 | C134: 3.772611867 | D134: 4.443077637 | E134: 4.300851492
A135: 2014-02-24 | B135: 1.183465119 | C135: 3.959822841 | D135: 4.557032295 | E135: 4.68764318
A136: 2014-03-03 | B136: 1.088760116 | C136: 3.749008503 | D136: 4.584896194 | E136: 4.582001093
A137: 2014-03-10 | B137: 1.928339607 | C137: 3.569373518 | D137: 4.882881514 | E137: 5.094134657
A138: 2014-03-17 | B138: 2.160084173 | C138: 3.485524269 | D138: 5.033335197 | E138: 5.167074847
A139: 2014-03-24 | B139: 1.490743605 | C139: 3.461541073 | D139: 4.740934944 | E139: 4.693708994
A140: 2014-03-31 | B140: 1.475910794 | C140: 3.136464425 | D140: 4.687030802 | E140: 4.531717975
A141: 2014-04-07 | B141: 2.106801995 | C141: 2.406698381 | D141: 4.778665521 | E141: 5.114804763
A142: 2014-04-14 | B142: 1.826739865 | C142: 3.047603127 | D142: 4.507259334 | E142: 5.015626833
A143: 2014-04-21 | B143: 1.587868619 | C143: 2.586056324 | D143: 4.224998134 | E143: 4.659877195
A144: 2014-04-28 | B144: 1.615184087 | C144: 2.7005654 | D144: 4.23439094 | E144: 4.859230113
A145: 2014-05-05 | B145: 1.564678603 | C145: 2.492865099 | D145: 4.557868997 | E145: 4.626188485
A146: 2014-05-12 | B146: 1.536383427 | C146: 2.473897758 | D146: 4.830628282 | E146: 4.721186514
A147: 2014-05-19 | B147: 2.263925985 | C147: 2.87040587 | D147: 5.263584495 | E147: 5.184593156
A148: 2014-05-26 | B148: 2.19303144 | C148: 2.353460351 | D148: 5.30203328 | E148: 4.966287821
A149: 2014-06-02 | B149: 1.463005279 | C149: 2.450059893 | D149: 4.971015319 | E149: 4.319813443
A150: 2014-06-09 | B150: 1.519144917 | C150: 2.504270436 | D150: 4.569055191 | E150: 4.542627171
A151: 2014-06-16 | B151: 2.285327589 | C151: 1.935689057 | D151: 4.461665708 | E151: 4.993990726
A152: 2014-06-23 | B152: 1.593033881 | C152: 2.345226282 | D152: 4.371550363 | E152: 4.315232407
A153: 2014-06-30 | B153: 1.866175305 | C153: 1.654785289 | D153: 4.670760135 | E153: 4.872514018
A154: =A153+7 -> 2014-07-07 | B154: 2.462990026 | C154: 1.386964891 | D154: 5.262864114 | E154: 5.120640902
A155: 2014-07-14 | B155: 1.902006574 | C155: 1.508386355 | D155: 4.614491363 | E155: 4.803100841
A156: 2014-07-21 | B156: 1.970568429 | C156: 1.26952045 | D156: 4.719238766 | E156: 4.965176857
A157: 2014-07-28 | B157: 2.542314413 | C157: 1.399057696 | D157: 4.898523182 | E157: 5.513433465
A158: 2014-08-04 | B158: 3.094334922 | C158: 1.872514595 | D158: 4.974532664 | E158: 6.002734415
A159: 2014-08-11 | B159: 2.381126422 | C159: 1.956516382 | D159: 4.374403917 | E159: 5.491159669
A160: 2014-08-18 | B160: 2.725383206 | C160: 2.031498494 | D160: 4.700327918 | E160: 5.595073332
A161: 2014-08-25 | B161: 2.451434876 | C161: 1.963610244 | D161: 4.235340726 | E161: 5.621993817
A162: 2014-09-01 | B162: 2.141703356 | C162: 2.046196447 | D162: 3.891021717 | E162: 5.29522373
A163: 2014-09-08 | B163: 2.292815366 | C163: 1.300733665 | D163: 3.982037836 | E163: 5.38264476
A164: 2014-09-15 | B164: 2.076802202 | C164: 1.611130905 | D164: 3.957525461 | E164: 5.377849015
A165: 2014-09-22 | B165: 1.825649245 | C165: 2.169081927 | D165: 4.182492511 | E165: 5.23926938
A166: 2014-09-29 | B166: 1.405055136 | C166: 2.024987892 | D166: 4.135520968 | E166: 5.131661153
A167: 2014-10-06 | B167: 1.387038596 | C167: 2.128115487 | D167: 4.191828324 | E167: 4.95595167
A168: 2014-10-13 | B168: 0.5734737307 | C168: 2.564898186 | D168: 3.908566764 | E168: 4.498187546
A169: 2014-10-20 | B169: -0.04009980324 | C169: 2.54895128 | D169: 3.21993144 | E169: 3.832087092
A170: 2014-10-27 | B170: -0.0588215165 | C170: 2.313969797 | D170: 3.491398065 | E170: 3.95910421
A171: 2014-11-03 | B171: -0.8558900944 | C171: 2.233296427 | D171: 3.219472635 | E171: 3.278823677
A172: 2014-11-10 | B172: -0.8318694328 | C172: 2.883816187 | D172: 3.126821647 | E172: 3.05959646
A173: 2014-11-17 | B173: -1.440008448 | C173: 2.576328886 | D173: 2.63025756 | E173: 2.413158102
A174: 2014-11-24 | B174: -0.5772210201 | C174: 2.783149539 | D174: 2.933383361 | E174: 2.863117613
A175: 2014-12-01 | B175: -1.035218165 | C175: 2.836730385 | D175: 2.956605292 | E175: 2.286593929
A176: 2014-12-08 | B176: -1.603926068 | C176: 2.90975884 | D176: 2.411091475 | E176: 1.881182474
A177: 2014-12-15 | B177: -1.548431485 | C177: 2.220295013 | D177: 2.277202045 | E177: 2.0175655
A178: 2014-12-22 | B178: -1.472425888 | C178: 2.02687004 | D178: 2.214775671 | E178: 2.029737253
A179: 2014-12-29 | B179: -1.433860296 | C179: 1.78614367 | D179: 1.806139301 | E179: 1.697115874
A180: 2015-01-05 | B180: -1.66078911 | C180: 1.511009588 | D180: 2.120620172 | E180: 1.461084337
A181: 2015-01-12 | B181: -1.862623778 | C181: 1.515432517 | D181: 2.008176664 | E181: 1.419270492
A182: 2015-01-19 | B182: -1.375695176 | C182: 1.955174471 | D182: 1.998751802 | E182: 1.767007541
A183: 2015-01-26 | B183: -1.048880857 | C183: 1.696492888 | D183: 2.151076253 | E183: 2.144247261
A184: 2015-02-02 | B184: -1.061896815 | C184: 1.960291535 | D184: 1.934316073 | E184: 1.699419296
A185: 2015-02-09 | B185: -1.291776083 | C185: 2.169772446 | D185: 1.947975303 | E185: 1.680580655
A186: 2015-02-16 | B186: -0.4834821571 | C186: 1.684883732 | D186: 2.529530022 | E186: 2.399782675
A187: 2015-02-23 | B187: -0.215919085 | C187: 1.695131101 | D187: 2.773519299 | E187: 2.420149428
A188: 2015-03-02 | B188: -0.4664997104 | C188: 1.849365749 | D188: 2.580640277 | E188: 2.365435865
A189: 2015-03-09 | B189: -0.3094452893 | C189: 1.658689819 | D189: 2.31849976 | E189: 2.51338517
A190: 2015-03-16 | B190: -0.3726769833 | C190: 2.358557729 | D190: 2.437984863 | E190: 2.401726708
A191: 2015-03-23 | B191: -0.5573947348 | C191: 2.442214365 | D191: 2.189629004 | E191: 2.602114231
A192: 2015-03-30 | B192: -0.5738481671 | C192: 2.508308031 | D192: 2.110019433 | E192: 2.923409303
A193: 2015-04-06 | B193: -0.5589168688 | C193: 2.988388207 | D193: 2.305338639 | E193: 3.038329433
A194: 2015-04-13 | B194: 0.03483695725 | C194: 3.071671195 | D194: 2.425764668 | E194: 3.857548895
A195: 2015-04-20 | B195: 0.3455271824 | C195: 3.250504114 | D195: 2.751686812 | E195: 4.211798455
A196: 2015-04-27 | B196: 0.09445997809 | C196: 2.741620064 | D196: 2.490970764 | E196: 3.95299862
A197: 2015-05-04 | B197: -0.3213905596 | C197: 3.614901963 | D197: 2.544366559 | E197: 3.779381697
A198: 2015-05-11 | B198: 0.07999757295 | C198: 3.819356356 | D198: 2.340859199 | E198: 4.280210527
A199: 2015-05-18 | B199: 0.8529908674 | C199: 3.781389252 | D199: 2.488513915 | E199: 5.020536453
A200: 2015-05-25 | B200: 1.557372349 | C200: 4.085424637 | D200: 2.764968202 | E200: 5.40439688
A201: 2015-06-01 | B201: 1.391497783 | C201: 3.647352854 | D201: 2.729480232 | E201: 5.25525082
A202: 2015-06-08 | B202: 1.153839557 | C202: 3.221512688 | D202: 2.880725976 | E202: 4.792000183
A203: 2015-06-15 | B203: 2.034600159 | C203: 3.272126347 | D203: 3.464043096 | E203: 5.604559756
A204: 2015-06-22 | B204: 2.135626062 | C204: 3.262326035 | D204: 3.429702816 | E204: 5.948032014
A205: 2015-06-29 | B205: 2.11705954 | C205: 3.135285667 | D205: 3.540118644 | E205: 6.097694132
A206: 2015-07-06 | B206: 2.856745469 | C206: 2.929321824 | D206: 3.928053294 | E206: 6.518785374
A207: 2015-07-13 | B207: 2.125104317 | C207: 3.685908675 | D207: 3.983920465 | E207: 5.98758381
A208: 2015-07-20 | B208: 3.041156514 | C208: 3.751185422 | D208: 4.641032396 | E208: 6.609571653
A209: 2015-07-27 | B209: 2.96501554 | C209: 3.999625882 | D209: 4.720409023 | E209: 6.601900314
A210: 2015-08-03 | B210: 3.504155035 | C210: 3.435565878 | D210: 4.712218459 | E210: 6.828971537
A211: 2015-08-10 | B211: 3.658016327 | C211: 3.25228875 | D211: 4.979751814 | E211: 7.001143532
A212: 2015-08-17 | B212: 3.675811762 | C212: 3.069007165 | D212: 4.96144403 | E212: 7.37099671
A213: 2015-08-24 | B213: 4.06209188 | C213: 3.902113169 | D213: 4.920575272 | E213: 7.625692401
A214: 2015-08-31 | B214: 4.026253738 | C214: 3.504140316 | D214: 4.478566559 | E214: 7.745052062
... 8 more rows

Sheet HDR PRNG
A1: Hubbard Decision Research PRNG Chapter 12
A2: Trial ID | B2: 7 | H2: Formula Text | I2: rand = ((mod((mod(mod(999999999999989,mod(trialID*2499997+varID*1800451,7450589)*4658+7450581)*383,99991)*7440893+mod(mod(999999999999989,mod(trialID*2246527+varID*2399993,7450987)*7580+7560584)*17669,7440893))*1343,4294967296))+0.5)/2^32
B4: Variable ID | C4: HDR PRNG
B5: 1000 | C5: =((MOD((MOD(MOD(999999999999989,MOD($B$2*2499997+B5*1800451,7450589)*4658+7450581)*383,99991)*7440893+MOD(MOD(999999999999989,MOD($B$2*2246527+B5*2399993,7450987)*7580+7560584)*17669,7440893))*1343,4294967296))+0.5)/2^32 -> 0.9346124042 | D5: ← Copy this cell to use the PRNG in your exercises
B7: Dimension | C7: 1st Term | D7: 2nd Term | E7: Description
B8: Trial | C8: 2499997 | D8: 2246527 | E8: This represents a unique identifier for a given scenario in a simulation. This 8 decimal digit identifier allows for up to 100 million unique trials for each variable in a model.
B9: Variable | C9: 1800451 | D9: 2399993 | E9: This is a unique identifier for a variable. It would be an 8-digit variable ID allowing for up to 100 million unique variables. For example, if “Monthly Demand for Product X” and “average time spent in activity Y” were variables in a model, they would each be given unique variable IDs. Organizations may structure their Variables IDs so that related variables are in groups. For example, perhaps all marketing and sales related variables have “11” for the first two digits and all cybersecurity related variables have “73” for the first two digits, and so on. Variable IDs could be assigned on an ad hoc basis but a large organization making many models with a lot of shared variables would want to develop an internal library of assigned variable IDs similar to an accountant’s “chart of accounts.”
B12: Sampling Error Around Dieharder Tests Results
H13: Figure 1: Sampling error around Dieharder tests results. This uses a Beta Distribution to with a prior of alpha=1 and beta=1 to compute a 90% confidence interval for estimate of mean weak/fails out Dieharder test suite. The top row of brackets are estimates of WEAK result rates and the bottom row are estimates of FAIL rates.
B15: • | C15: This uses a Beta Distribution with a prior of alpha=1 and beta=1 to compute a 90% confidence interval for the estimate of mean weak/fail rates in the Dieharder test suite.
H18: The top row of brackets are estimates of WEAK result rates and the bottom row are estimates of FAIL rates.
G19: •

Sheet Validation (hidden)
A1: Normal
A2: Binary
A3: Uniform
A4: Lognorm
A5: Triangular
A6: Constant
